Workbook

Sheet Покупка+стройка (hidden)
C1: ИЗМЕНЯЕМЫЕ ЯЧЕЙКИ
C4: КЛЮЧЕВЫЕ ПАРАМЕТРЫ КРЕДИТОВАНИЯ | F4: ОБЗОР ИТОГОВЫХ ПАРАМЕТРОВ
U5: Да
C6: Личное страхование | D6: Да | G6: Стандартные условия | H6: Выгодные условия с субсидированием | I6: Условия по земле | J6: Итоговые условия субсидирования (земли + подряд) | U6: Нет
C7: Регион приобретения недвижимости | D7: Краснодарский край | F7: Стоимость земли | G7: =D20 -> 1,000,000.00 | I7: =D20 -> 1,000,000.00 | J7: =I7 -> 1,000,000.00
C8: Категория подрядчика | D8: Стандарт | F8: Стоимость по договору подряда (с учетом удорожания) | G8: =D21 -> 8,000,000.00 | H8: =D21+H21 ->  | J8: =H8 -> 
C9: Особенности расчетов по сделке | D9: Обычная сделка | F9: Максимальная сумма кредита | G9: =(G7+G8)*$M$10 -> 7,191,000.00 | H9: =H8*$M$10 ->  | I9: =I7*$M$10 -> 799,000.00 | J9: =H9+I9 -> 
F10: Минимальный размер ПВ (с учетом удорожания стройки) | H10: =H8*(100%-$M$10) ->  | I10: =I7*(100%-$M$10) -> 201,000.00 | J10: =H10+I10 ->  | M10: 79.90% | U10: Цели кредита | V10: Подрядчики
C11: Процентная ставка (до субсидирования) | D11: =IF(D6="Нет",'Матрица ставок_Инфо'!H17,IF(D6="Да",'Матрица ставок_Инфо'!H18,"")) -> 27.50% | F11: Фактический размер ПВ (с учетом удорожания стройки) | G11: =D25+D31 -> 1,809,000.00 | H11: 1,831,425.33 | I11: 201,000.00 | J11: =H11+I11 -> 2,032,425.33 | U11: Строительство дома на своем участке | V11: Стандарт
C12: Дисконт к ставке (на весь срок кредитования) | D12: 8.50% | F12: Итоговая сумма кредита | G12: =IF(OR(G11="",G11=0,G11<G10),"",G7+G8-G11) -> 7,191,000.00 | H12: =IF(OR(H11="",H11=0,H11<H10),"",H8-H11) ->  | I12: =IF(OR(I7="",I7=0),"",IF(OR(I11="",I11=0,I11<I10),"",I7-I11)) -> 799,000.00 | J12: =IF(OR(I7="",I7=0),H12,IF(OR(I12="",I12=0),"",(H12+I12))) ->  | U12: Покупка земли и строительство дома | V12: Ключевой
C13: Срок действия льготной ставки | D13: весь срок | F13: Ставка по кредиту | G13: =IF(D6="Нет",'Матрица ставок_Инфо'!H17,IF(D6="Да",'Матрица ставок_Инфо'!H18,"")) -> 27.50% | H13: =G13-D12 -> 19.00% | I13: =IF(OR(I7="",I7=0),"",IF(D6="Нет",'Матрица ставок_Инфо'!H17,IF(D6="Да",'Матрица ставок_Инфо'!H18,""))) -> 27.50% | J13: =IF(OR(I7="",I7=0),H13,IF(OR(I12="",I12=0),"",IF(OR(I7="",I7=0),H13,SUMPRODUCT(H12:I12,H13:I13)/(H12+I12)))) ->  | M13: СИ | N13: СИ для ДФО | O13: ГП | P13: IT | Q13: Комбо-транш | R13: Базовая
C14: Итоговая процентная ставка | D14: =D11-D12 -> 19.00% | F14: Платеж по кредиту | G14: =PMT(G13/12,D19,G12) -> -164,838.92 ₽ | H14: =PMT(H13/12,D19,H12) ->  | I14: =IF(OR(I12="",I12=0),"",PMT(I13/12,D19,I12)) -> -18,315.44 ₽ | J14: =IF(OR(I7="",I7=0),H14,IF(OR(J12="",J12=0),"",IF(OR(I7="",I7=0),H14,PMT(J13/12,D19,J12)))) ->  | L14: Клиент "улица" или зп-клиент (НЕ А-Клуб/Сотрудники) БЕЗ личного страхования | M14: ='Матрица ставок_Инфо'!C17 -> 6.0% | N14: ='Матрица ставок_Инфо'!D17 -> 5.0% | O14: ='Матрица ставок_Инфо'!E17 -> 9.0% | P14: ='Матрица ставок_Инфо'!F17 -> 6.0% | Q14: ='Матрица ставок_Инфо'!G17 -> 24.0% | R14: ='Матрица ставок_Инфо'!H17 -> 28.5% | S14: ='Матрица ставок_Инфо'!H21 -> 28.5%
C15: Размер КВ,% | D15: =IF(D12=12.5%,N21,IF(D12=11.5%,N23,IF(D12=10.5%,N25,IF(D12=9.5%,N29,IF(D12=8.5%,N30,IF(D12=7.5%,N31,IF(D12=6.5%,#REF!,""))))))) -> 19.63% | F15: Процентная переплата | G15: =IF(D13="весь срок",G14*D19+G12,"") -> -52,480,690.45 | H15: =IF(D13="весь срок",(H14*D19+H12),"") ->  | I15: =IF(D13="весь срок",(I14*D19+I12),"") -> -5,831,187.83 | J15: =IF(OR(I7="",I7=0),H15,IF(OR(J12="",J12=0),"",IF(D13="весь срок",J14*D19+J12,""))) ->  | L15: Клиент "улица" или зп-клиент (НЕ А-Клуб/Сотрудники) С договором личного страхования | M15: ='Матрица ставок_Инфо'!C18 -> 6.0% | N15: ='Матрица ставок_Инфо'!D18 -> 5.0% | O15: ='Матрица ставок_Инфо'!E18 -> 8.0% | P15: ='Матрица ставок_Инфо'!F18 -> 6.0% | Q15: ='Матрица ставок_Инфо'!G18 -> 23.0% | R15: ='Матрица ставок_Инфо'!H18 -> 27.5% | S15: ='Матрица ставок_Инфо'!H22 -> 27.5%
C16: Доля базового КВ в счет увеличения стоимости | D16: 100.00%
C17: ЗАПРАШИВАЕМЫЕ ПАРАМЕТРЫ КРЕДИТОВАНИЯ | G17: =IF(AND(G11<G10,G11>0),"Внимание! Необходимо увеличить ПВ (не может быть ниже минимального)","") ->  | H17: =IF(AND(H11<H10,H11>0),"Внимание! Необходимо увеличить ПВ (не может быть ниже минимального)","") ->  | I17: =IF(AND(I11<I10,I11>0),"Внимание! Необходимо увеличить ПВ (не может быть ниже минимального)","") ->  | L17: Клиент А-Клуб/Сотрудники БЕЗ личного страхования | M17: ='Матрица ставок_Инфо'!C19 -> 6.0% | N17: ='Матрица ставок_Инфо'!D19 -> 5.0% | O17: ='Матрица ставок_Инфо'!E19 -> 9.0% | P17: ='Матрица ставок_Инфо'!F19 -> 6.0% | Q17: ='Матрица ставок_Инфо'!G19 -> 24.0% | R17: ='Матрица ставок_Инфо'!H19 -> 28.5% | S17: ='Матрица ставок_Инфо'!H23 -> 28.5%
L18: Клиент А-Клуб/Сотрудники С договором личного страхования | M18: ='Матрица ставок_Инфо'!C20 -> 6.0% | N18: ='Матрица ставок_Инфо'!D20 -> 5.0% | O18: ='Матрица ставок_Инфо'!E20 -> 8.0% | P18: ='Матрица ставок_Инфо'!F20 -> 6.0% | Q18: ='Матрица ставок_Инфо'!G20 -> 23.0% | R18: ='Матрица ставок_Инфо'!H20 -> 27.5% | S18: ='Матрица ставок_Инфо'!H24 -> 27.5% | U18: 1
C19: Срок кредитования | D19: 362.00 | F19: Выгода по ежемесячному платежу | H19: =IF(OR(I7="",I7=0),H14-G14,J14-G14) -> 
C20: Стоимость земли | D20: 1,000,000.00 | F20: Выгода по процентной переплате (с учетом увеличения стоимости подряда) | H20: =IF(D13="весь срок",J15-G15,"") ->  | M20: Размеры дисконтов | N20: Матрица КВ | O20: Доля КВ
C21: Стоимость строительства | D21: 8,000,000.00 | E21: =IF(MOD(D19-2,12)>0,"Срок кредитования должен быть кратен 12 мес + 2 мес.","") ->  | F21: КВ Банку (с учетом удорожения стоимости строительства) | H21: =H12*D15 ->  | M21: 12.50% | N21: ='Матрица КВ'!#REF! ->  | O21: 100% | R21: весь срок | U21: Категория клиента | V21: Улица или зарплатник
C22: Минимальный размер ПВ, из них: | D22: =(D20+D21)*(100%-M10) -> 1,809,000.00 | R22: 1 год
C23: - минимальный ПВ на землю | D23: =(D20)*(100%-M10) -> 201,000.00 | M23: 11.50% | N23: ='Матрица КВ'!E9 -> 0.00% | O23: 50% | R23: 2 года | V23: Сотрудник/А-Клуб
C24: - минимальный ПВ на строительство дома | D24: =(D21)*(100%-M10) -> 1,608,000.00
C25: Размер собственных средств (ПВ)_без учета МСК, из них: | D25: 1,809,000.00 | F25: =IF((D25+D31)<((100%-M10)*(D20+D21)),"Размер ПВ не может быть меньше","") ->  | G25: =IF((D25+D31)<((100%-M10)*(D20+D21)),(D20+D21)*(100%-M10),"") ->  | M25: 10.50% | N25: ='Матрица КВ'!E8 -> 0.00% | O25: 25%
C26: - собственные средства на покупку земли | D26: 201,000.00 | F26: =IF((D26)<((100%-M10)*(D20)),"Размер ПВ не может быть меньше","") ->  | G26: =IF((D26)<((100%-M10)*(D20)),(D20)*(100%-M10),"") -> 
C27: - собственные средства на строительство дома | D27: 1,608,000.00 | F27: =IF((D27)<((100%-M10)*(D21)),"Размер ПВ не может быть меньше","") ->  | G27: =IF((D27)<((100%-M10)*(D21)),(D20)*(100%-M10),"") -> 
F29: =IF(D25<((100%-M10)*(D20+D21)),(100%-M10)*(D20+D21),"") ->  | M29: 9.50% | N29: ='Матрица КВ'!E7 -> 21.93% | O29: 0% | V29: Да
M30: 8.50% | N30: ='Матрица КВ'!E6 -> 19.63% | V30: Нет
C31: Размер МСК в счет ПВ (может идти только на стройку) | D31: 0 | M31: 7.50% | N31: ='Матрица КВ'!E5 -> 17.34%
C32: Размер кредитных средств, из них: | D32: =D20+D21-D25-D31 -> 7,191,000.00 | F32: =IF(AND(OR(D7="МиМО/СПбиЛО",D7="Краснодарский край"),D32>50000000),"ВНИМАНИЕ, сумма кредита не может быть больше 50 млн руб.",IF(D32>30000000,"ВНИМАНИЕ, сумма кредита не может быть больше 30 млн руб.","")) ->  | U32: Специфика расчетов | V32: Обычная сделка
C33: - кредитные средства на покупку земли | D33: =D20-D26 -> 799,000.00
C34: - кредитные средства на строительство дома | D34: =D21-D27 -> 6,392,000.00
C35: К/З | D35: =D32/(D20+D21) -> 79.90% | V35: GoodWood
C36: РАСПРЕДЕЛЕНИЕ СРЕДСТВ ПО АККРЕДИТИВАМ
C37: Аккредитивы | D37: Базовые значения | E37: Условия доступа к аккредитиву (Подсказка)
C38: 0 аккредитив (деньги пойдут на оплату земельного участка) | D38: =D20-#REF! ->  | E38: =IF(D38="","",'Матрица по аккред._Инфо'!F3) -> 
C39: 1 аккредитив (деньги пойдут на строительство фундамента) | D39: =IF(D9="GoodWood",(IF(H8*'Матрица по аккред._Инфо'!C12-#REF!-D31<0,0,H8*'Матрица по аккред._Инфо'!C12-#REF!-D31)),IF((IF($D$8="Стандарт",($H$8*'Матрица по аккред._Инфо'!C4),IF($D$8="Ключевой",($H$8*'Матрица по аккред._Инфо'!D4),IF($D$8="Эксклюзив",($H$8*'Матрица по аккред._Инфо'!E4),0)))-#REF!-D31)<0,0,(IF($D$8="Стандарт",($H$8*'Матрица по аккред._Инфо'!C4),IF($D$8="Ключевой",($H$8*'Матрица по аккред._Инфо'!D4),IF($D$8="Эксклюзив",($H$8*'Матрица по аккред._Инфо'!E4),0)))-#REF!-D31))) ->  | E39: =IF(D39="","",'Матрица по аккред._Инфо'!F4) ->  | U39: Программа | V39: Семейная ипотека
C40: 2 аккредитив (деньги пойдут на строительство стенового комплекта) | D40: =IF(D9="GoodWood",(IF(H8*'Матрица по аккред._Инфо'!C12-#REF!-D31<0,(H8*'Матрица по аккред._Инфо'!C13+H8*'Матрица по аккред._Инфо'!C12-#REF!-D31),H8*'Матрица по аккред._Инфо'!C13)),IF(((IF($D$8="Стандарт",($H$8*'Матрица по аккред._Инфо'!C4),IF($D$8="Ключевой",($H$8*'Матрица по аккред._Инфо'!D4),IF($D$8="Эксклюзив",($H$8*'Матрица по аккред._Инфо'!E4),0)))-#REF!-D31)<0),IF($D$8="Стандарт",($H$8*'Матрица по аккред._Инфо'!C5),IF($D$8="Ключевой",($H$8*'Матрица по аккред._Инфо'!D5),IF($D$8="Эксклюзив",($H$8*'Матрица по аккред._Инфо'!E5),0)))+(IF($D$8="Стандарт",($H$8*'Матрица по аккред._Инфо'!C4),IF($D$8="Ключевой",($H$8*'Матрица по аккред._Инфо'!D4),IF($D$8="Эксклюзив",($H$8*'Матрица по аккред._Инфо'!E4),0)))-#REF!-D31),IF($D$8="Стандарт",($H$8*'Матрица по аккред._Инфо'!C5),IF($D$8="Ключевой",($H$8*'Матрица по аккред._Инфо'!D5),IF($D$8="Эксклюзив",($H$8*'Матрица по аккред._Инфо'!E5),0))))) ->  | E40: =IF(D40="","",'Матрица по аккред._Инфо'!F5) ->  | V40: Семейная ипотека (для ДФО)
C41: 3 аккредитив (деньги пойдут на завершение строительства) | D41: =IF(D9="GoodWood",(H8*'Матрица по аккред._Инфо'!C14),IF($D$8="Стандарт",($H$8*'Матрица по аккред._Инфо'!C7),IF($D$8="Ключевой",($H$8*'Матрица по аккред._Инфо'!D6),IF($D$8="Эксклюзив",($H$8*'Матрица по аккред._Инфо'!E7),0)))) ->  | E41: =IF(D41="","",IF(D9="GoodWood",'Матрица по аккред._Инфо'!F14,'Матрица по аккред._Инфо'!F7)) ->  | V41: IT-Ипотека
C42: Проверка_общая стоимость строительства (с учетом внесенного ПВ и МСК) | D42: =SUM(D39:D41)+#REF!+D31 ->  | V42: Собственная программа
U43: Регион
V44: МиМО/СПбиЛО
V45: Краснодарский край
V46: иные регионы с численностью СВЫШЕ 1 млн чел.
V47: иные регионы с численностью ДО 1 млн чел.

Sheet Настройки калькулятора
B2: Для корректной работы Калькулятора необходимо:
B3: Зайти в меню «Файл»
B12: Выбрать «Параметры»
B28: Выбрать «Формулы»
B41: Проверить что стоит галочка в параметре «Включить интерактивные вычисления»

Sheet График на 1-2 года (hidden)
B2: срок кредитования | C2: =#REF! -> 
C3: =#REF! -> 
C4: =#REF! -> 
B6: Мес | C6: Платеж | D6: % | E6: ОД | F6: ОСЗ
B7: 1 | C7: =PMT($C$4/12,$C$2,$C$3) ->  | D7: =-C3*C4/12 ->  | E7: =C7-D7 ->  | F7: =C3+E7 -> 
B8: 2 | C8: =PMT($C$4/12,$C$2,$C$3) ->  | D8: =-$F$7*$C$4/12 ->  | E8: =C8-D8 ->  | F8: =F7+E8 -> 
B9: 3 | C9: =PMT($C$4/12,$C$2,$C$3) ->  | D9: =-$F$7*$C$4/12 ->  | E9: =C9-D9 ->  | F9: =F8+E9 -> 
B10: 4
B11: 5
B12: 6
B13: 7
B14: 8
B15: 9
B16: 10
B17: 11
B18: 12
B19: 13
B20: 14
B21: 15
B22: 16
B23: 17
B24: 18
B25: 19
B26: 20
B27: 21
B28: 22
B29: 23
B30: 24
B31: 25
B32: 26
B33: 27
B34: 28
B35: 29
B36: 30
B37: 31
B38: 32
B39: 33
B40: 34
B41: 35
B42: 36
B43: 37
B44: 38
B45: 39
B46: 40
B47: 41
B48: 42
B49: 43
B50: 44
B51: 45
B52: 46
B53: 47
B54: 48
B55: 49
B56: 50
B57: 51
B58: 52
B59: 53
B60: 54
B61: 55
B62: 56
B63: 57
B64: 58
B65: 59
B66: 60
B67: 61
B68: 62
B69: 63
B70: 64
B71: 65
B72: 66
B73: 67
B74: 68
B75: 69
B76: 70
B77: 71
B78: 72
B79: 73
B80: 74
B81: 75
B82: 76
B83: 77
B84: 78
B85: 79
B86: 80
B87: 81
B88: 82
B89: 83
B90: 84
B91: 85
B92: 86
B93: 87
B94: 88
B95: 89
B96: 90
B97: 91
B98: 92
B99: 93
B100: 94
B101: 95
B102: 96
B103: 97
B104: 98
B105: 99
B106: 100
B107: 101
B108: 102
B109: 103
B110: 104
B111: 105
B112: 106
B113: 107
B114: 108
B115: 109
B116: 110
B117: 111
B118: 112
B119: 113
B120: 114
B121: 115
B122: 116
B123: 117
B124: 118
B125: 119
B126: 120
B127: 121
B128: 122
B129: 123
B130: 124
B131: 125
B132: 126
B133: 127
B134: 128
B135: 129
B136: 130
B137: 131
B138: 132
B139: 133
B140: 134
B141: 135
B142: 136
B143: 137
B144: 138
B145: 139
B146: 140
B147: 141
B148: 142
B149: 143
B150: 144
B151: 145
B152: 146
B153: 147
B154: 148
B155: 149
B156: 150
B157: 151
B158: 152
B159: 153
B160: 154
B161: 155
B162: 156
B163: 157
B164: 158
B165: 159
B166: 160
B167: 161
B168: 162
B169: 163
B170: 164
B171: 165
B172: 166
B173: 167
B174: 168
B175: 169
B176: 170
B177: 171
B178: 172
B179: 173
B180: 174
B181: 175
B182: 176
B183: 177
B184: 178
B185: 179
B186: 180
B187: 181
B188: 182
B189: 183
B190: 184
B191: 185
B192: 186
B193: 187
B194: 188
B195: 189
B196: 190
B197: 191
B198: 192
B199: 193
B200: 194
B201: 195
B202: 196
... 166 more rows

Sheet Покупка+стройка (драфт) (hidden)
C1: ИЗМЕНЯЕМЫЕ ЯЧЕЙКИ
C4: КЛЮЧЕВЫЕ ПАРАМЕТРЫ КРЕДИТОВАНИЯ | F4: ОБЗОР РАСЧЕТНЫХ ПАРАМЕТРОВ
S5: Да
C6: Личное страхование | D6: Да | G6: Стандартные условия | H6: Выгодные условия с субсидированием | S6: Нет
C7: Регион приобретения недвижимости | D7: Краснодарский край | F7: Стоимость приобретаемого земельного участка | G7: =D20 -> 6,000,000.00 | H7: =D20 -> 6,000,000.00
C8: Цель кредита | D8: Строительство дома на своем участке | F8: Стоимость по договору подряда (с учетом удорожания) | G8: =D21 -> 8,000,000.00 | H8: =D21+D16*D33 -> 10,192,607.44
C9: Категория подрядчика | D9: Ключевой | F9: Общая стоимость для расчета кредита | G9: =G7+G8 -> 14,000,000.00 | H9: =H7+H8 -> 16,192,607.44
C10: Особенности расчетов по сделке | D10: Обычная сделка | F10: Максимальная сумма кредита | G10: =G9*$K$10 -> 11,186,000.00 | H10: =H9*$K$10 -> 12,937,893.34 | K10: 79.90% | S10: Цели кредита | T10: Подрядчики
F11: Минимальный размер ПВ | G11: =G9*(100%-$K$10) -> 2,814,000.00 | H11: =H9*(100%-$K$10) -> 3,254,714.09 | S11: Строительство дома на своем участке | T11: Стандарт
C12: Процентная ставка (до субсидирования) | D12: ='Матрица ставок_Инфо'!H4 -> 27.50% | F12: Фактический размер ПВ | G12: =G11 -> 2,814,000.00 | H12: =H11 -> 3,254,714.09 | S12: Покупка земли и строительство дома | T12: Ключевой
C13: Дисконт к ставке (на весь срок кредитования) | D13: 9.50% | F13: Сумма кредита | G13: =G9-G12 -> 11,186,000.00 | H13: =H9-H12 -> 12,937,893.34 | K13: СИ | L13: СИ для ДФО | M13: ГП | N13: IT | O13: Комбо-транш | P13: Базовая
C14: Итоговая процентная ставка | D14: =D12-D13 -> 18.00% | F14: Ставка по кредиту | G14: =D12 -> 27.50% | H14: =G14-D13 -> 18.00% | J14: Клиент "улица" или зп-клиент (НЕ А-Клуб/Сотрудники) БЕЗ личного страхования | K14: ='Матрица ставок_Инфо'!C17 -> 6.0% | L14: ='Матрица ставок_Инфо'!D17 -> 5.0% | M14: ='Матрица ставок_Инфо'!E17 -> 9.0% | N14: ='Матрица ставок_Инфо'!F17 -> 6.0% | O14: ='Матрица ставок_Инфо'!G17 -> 24.0% | P14: ='Матрица ставок_Инфо'!H17 -> 28.5% | Q14: ='Матрица ставок_Инфо'!H21 -> 28.5%
C15: Размер КВ,% | D15: =IF(D13=12.5%,L20,IF(D13=11.5%,L21,IF(D13=10.5%,L22,IF(D13=9.5%,L23,IF(D13=8.5%,L24,IF(D13=7.5%,L25,IF(D13=6.5%,L26,""))))))) -> 21.93% | F15: Платеж по кредиту | G15: =PMT(G14/12,D19,G13) -> -256,416.10 ₽ | H15: =PMT(H14/12,D19,H13) -> -194,958.08 ₽ | J15: Клиент "улица" или зп-клиент (НЕ А-Клуб/Сотрудники) С договором личного страхования | K15: ='Матрица ставок_Инфо'!C18 -> 6.0% | L15: ='Матрица ставок_Инфо'!D18 -> 5.0% | M15: ='Матрица ставок_Инфо'!E18 -> 8.0% | N15: ='Матрица ставок_Инфо'!F18 -> 6.0% | O15: ='Матрица ставок_Инфо'!G18 -> 23.0% | P15: ='Матрица ставок_Инфо'!H18 -> 27.5% | Q15: ='Матрица ставок_Инфо'!H22 -> 27.5%
C16: Размер КВ,руб. | D16: =D15*D27 -> 2,192,607.44 | F16: Процентная переплата | G16: =G15*D19-G13 -> -104,008,629.59 | H16: =H15*D19-H13 -> -83,512,718.44 | J16: Клиент А-Клуб/Сотрудники БЕЗ личного страхования | K16: ='Матрица ставок_Инфо'!C19 -> 6.0% | L16: ='Матрица ставок_Инфо'!D19 -> 5.0% | M16: ='Матрица ставок_Инфо'!E19 -> 9.0% | N16: ='Матрица ставок_Инфо'!F19 -> 6.0% | O16: ='Матрица ставок_Инфо'!G19 -> 24.0% | P16: ='Матрица ставок_Инфо'!H19 -> 28.5% | Q16: ='Матрица ставок_Инфо'!H23 -> 28.5%
J17: Клиент А-Клуб/Сотрудники С договором личного страхования | K17: ='Матрица ставок_Инфо'!C20 -> 6.0% | L17: ='Матрица ставок_Инфо'!D20 -> 5.0% | M17: ='Матрица ставок_Инфо'!E20 -> 8.0% | N17: ='Матрица ставок_Инфо'!F20 -> 6.0% | O17: ='Матрица ставок_Инфо'!G20 -> 23.0% | P17: ='Матрица ставок_Инфо'!H20 -> 27.5% | Q17: ='Матрица ставок_Инфо'!H24 -> 27.5% | S17: 1
C19: Срок кредитования | D19: 362.00 | E19: =IF(MOD(D19-2,12)>0,"Срок кредитования должен быть кратен 12 мес + 2 мес.","") ->  | K19: Размеры дисконтов | L19: Матрица КВ | M19: Доля КВ
C20: Стоимость приобретаемого земельного участка | D20: 6,000,000.00 | K20: 12.50% | L20: ='Матрица КВ'!#REF! ->  | M20: 100% | S20: Категория клиента | T20: Улица или зарплатник
C21: Стоимость строительства | D21: 8,000,000.00 | F21: Выгода по ежемесячному платежу | H21: =H15-G15 -> 61,458.02 | K21: 11.50% | L21: ='Матрица КВ'!E9 -> 0.00% | M21: 50% | T21: Сотрудник/А-Клуб
C22: Общая стоимость для расчета кредита | D22: =D20+D21 -> 14,000,000.00 | F22: Выгода по процентной переплате (с учетом увеличения стоимости подряда) | H22: =H16-G16 -> 20,495,911.15 | K22: 10.50% | L22: ='Матрица КВ'!E8 -> 0.00% | M22: 25%
C23: Размер собственных средств (ПВ)_без учета МСК | D23: 4,000,000.00 | K23: 9.50% | L23: ='Матрица КВ'!E7 -> 21.93% | M23: 0% | T23: Да
C24: Часть ПВ, которая уже внесена на земельный участок | K24: 8.50% | L24: ='Матрица КВ'!E6 -> 19.63% | T24: Нет
C25: Часть ПВ, которая уже внесена на строительство | D25: 0 | F25: =IF(D25>D23,"ОШИБКА!Размер внесенного ПВ меньше заявленного","") ->  | K25: 7.50% | L25: ='Матрица КВ'!E5 -> 17.34%
C26: Размер МСК в счет ПВ | D26: 0 | K26: 6.50% | L26: ='Матрица КВ'!E4 -> 15.06%
C27: Размер кредитных средств | D27: =D22-D23-D26 -> 10,000,000.00 | F27: =IF(AND(#REF!="Госпрограмма 2020",D27>6000000),"ВНИМАНИЕ, сумма кредита не может быть больше 6 млн руб.",IF(AND(OR(#REF!="Семейная ипотека",#REF!="Семейная ипотека (для ДФО)"),D7="МиМО/СПбиЛО",D27>30000000),"ВНИМАНИЕ, сумма кредита (с учетом КОМБО-Ипотеки) не может быть больше 30 млн руб.",IF(AND(OR(#REF!="Семейная ипотека",#REF!="Семейная ипотека (для ДФО)"),OR(D7="иные регионы с численностью СВЫШЕ 1 млн чел.",D7="иные регионы с численностью ДО 1 млн чел.",D7="Краснодарский край"),D27>15000000),"ВНИМАНИЕ, сумма кредита (с учетом КОМБО-Ипотеки) не может быть больше 15 млн руб.",IF(AND(#REF!="IT-Ипотека",OR(D7="МиМО/СПбиЛО",D7="иные регионы с численностью СВЫШЕ 1 млн чел.",D7="Краснодарский край"),D27>30000000),"ВНИМАНИЕ, сумма кредита (с учетом КОМБО-Ипотеки) не может быть больше 30 млн руб.",IF(AND(#REF!="Собственная программа",OR(D7="МиМО/СПбиЛО",D7="Краснодарский край"),D27>50000000),"ВНИМАНИЕ, сумма кредита (с учетом КОМБО-Ипотеки) не может быть больше 50 млн руб.",IF(AND(#REF!="Собственная программа",OR(D7="иные регионы с численностью СВЫШЕ 1 млн чел.",D7="иные регионы с численностью ДО 1 млн чел."),D27>30000000),"ВНИМАНИЕ, сумма кредита (с учетом КОМБО-Ипотеки) не может быть больше 30 млн руб.",IF(AND(#REF!="IT-Ипотека",D7="иные регионы с численностью ДО 1 млн чел.",D27>15000000),"ВНИМАНИЕ, сумма кредита (с учетом КОМБО-Ипотеки) не может быть больше 15 млн руб.",""))))))) -> 
C28: К/З | D28: =D27/D22 -> 71.43%
F32: Пересмотреть формулу, подвязать к новой сумму кредита
C33: Доля КВ в счет увеличения стоимости | D33: 100.00% | S33: Специфика расчетов | T33: Обычная сделка
T34: GoodWood
S37: Программа | T37: Семейная ипотека
C38: РАСПРЕДЕЛЕНИЕ СРЕДСТВ ПО АККРЕДИТИВАМ | T38: Семейная ипотека (для ДФО)
C39: Аккредитивы | D39: Базовые значения | E39: Условия доступа к аккредитиву (Подсказка) | T39: IT-Ипотека
C40: 1 аккредитив (деньги пойдут на оплату зем. участка) | D40: =IF(Цель_кредита="покупка земли и строительство дома",D20-D24,0) -> 0 | E40: =IF(D40="","",'Матрица по аккред._Инфо'!F3) -> Чтобы продавец зем.участка получил деньги за земельный участок, нужно предоставить документы о переходе права на зем. участок и ипотеки в пользу Банка | T40: Собственная программа
C41: 2 аккредитив (деньги пойдут на строительство фундамента) | D41: =IF(D10="GoodWood",(IF(D21*'Матрица по аккред._Инфо'!C12-D25-D26<0,0,D21*'Матрица по аккред._Инфо'!C12-D25-D26)),IF((IF($D$9="Стандарт",($D$21*'Матрица по аккред._Инфо'!C4),IF($D$9="Ключевой",($D$21*'Матрица по аккред._Инфо'!D4),IF($D$9="Эксклюзив",($D$21*'Матрица по аккред._Инфо'!E4),0)))-D25-D26)<0,0,(IF($D$9="Стандарт",($D$21*'Матрица по аккред._Инфо'!C4),IF($D$9="Ключевой",($D$21*'Матрица по аккред._Инфо'!D4),IF($D$9="Эксклюзив",($D$21*'Матрица по аккред._Инфо'!E4),0)))-D25-D26))) -> 2,400,000.00 | E41: =IF(D41="","",'Матрица по аккред._Инфо'!F4) -> Чтобы подрядчик получил деньги за построенный фундамент и частично на дальнейшее строительство клиент должен предоставить документы, подтверждающие готовность фундамента - акт выполненных работ + акт осмотра Моб оценщика (с выездом Моб оценщика) | S41: Регион
C42: 3 аккредитив (деньги пойдут на строительство стенового комплекта) | D42: =IF(D10="GoodWood",(IF(D21*'Матрица по аккред._Инфо'!C12-D25-D26<0,(D21*'Матрица по аккред._Инфо'!C13+D21*'Матрица по аккред._Инфо'!C12-D25-D26),D21*'Матрица по аккред._Инфо'!C13)),IF(((IF($D$9="Стандарт",($D$21*'Матрица по аккред._Инфо'!C4),IF($D$9="Ключевой",($D$21*'Матрица по аккред._Инфо'!D4),IF($D$9="Эксклюзив",($D$21*'Матрица по аккред._Инфо'!E4),0)))-D25-D26)<0),IF($D$9="Стандарт",($D$21*'Матрица по аккред._Инфо'!C5),IF($D$9="Ключевой",($D$21*'Матрица по аккред._Инфо'!D5),IF($D$9="Эксклюзив",($D$21*'Матрица по аккред._Инфо'!E5),0)))+(IF($D$9="Стандарт",($D$21*'Матрица по аккред._Инфо'!C4),IF($D$9="Ключевой",($D$21*'Матрица по аккред._Инфо'!D4),IF($D$9="Эксклюзив",($D$21*'Матрица по аккред._Инфо'!E4),0)))-D25-D26),IF($D$9="Стандарт",($D$21*'Матрица по аккред._Инфо'!C5),IF($D$9="Ключевой",($D$21*'Матрица по аккред._Инфо'!D5),IF($D$9="Эксклюзив",($D$21*'Матрица по аккред._Инфо'!E5),0))))) -> 1,200,000.00 | E42: =IF(D42="","",'Матрица по аккред._Инфо'!F5) -> После того, как стеновой комплект будет построен, подрядчик может получить деньги для продолжения строительства жилого дома. Для этого потребуется предоставить в Банк акт выполненных работ по завершению строительства стенового компекта + акт осмотра Моб оценщика (с выездом Моб оценщика) | T42: МиМО/СПбиЛО
C43: 4 аккредитив (деньги пойдут на завершение строительства) | D43: =IF(D10="GoodWood",(D21*'Матрица по аккред._Инфо'!C14),IF($D$9="Стандарт",($D$21*'Матрица по аккред._Инфо'!C7),IF($D$9="Ключевой",($D$21*'Матрица по аккред._Инфо'!D6),IF($D$9="Эксклюзив",($D$21*'Матрица по аккред._Инфо'!E7),0)))) -> 2,800,000.00 | E43: =IF(D43="","",IF(D10="GoodWood",'Матрица по аккред._Инфо'!F14,'Матрица по аккред._Инфо'!F7)) -> После того, как дом будет построен, Подрядчик получает оставшуюся сумму средств. Для этого необходимо предоставить в Банк акт выполненных работ по строительству жилого дома + акт осмотра Моб оценщика (с выездом Моб оценщика) | T43: Краснодарский край
C44: Проверка_общая стоимость строительства (с учетом внесенного ПВ и МСК) | D44: =SUM(D41:D43)+D25+D26 -> 6,400,000.00 | T44: иные регионы с численностью СВЫШЕ 1 млн чел.
T45: иные регионы с численностью ДО 1 млн чел.

Sheet Ввод параметров для расчетов (hidden)
C1: ИЗМЕНЯЕМЫЕ ЯЧЕЙКИ
C4: КЛЮЧЕВЫЕ ПАРАМЕТРЫ КРЕДИТОВАНИЯ | F4: ОБЗОР РАСЧЕТНЫХ ПАРАМЕТРОВ
S5: Да
C6: Личное страхование | D6: Да | G6: Стандартные условия | H6: Выгодные условия с субсидированием | S6: Нет
C7: Регион приобретения недвижимости | D7: Краснодарский край | F7: Стоимость приобретаемого земельного участка | G7: =D20 -> 6,000,000.00 | H7: =D20 -> 6,000,000.00
C8: Цель кредита | D8: Строительство дома на своем участке | F8: Стоимость по договору подряда (с учетом удорожания) | G8: =D21 -> 8,000,000.00 | H8: =D21+D16*D33 -> 10,192,607.44
C9: Категория подрядчика | D9: Ключевой | F9: Общая стоимость для расчета кредита | G9: =G7+G8 -> 14,000,000.00 | H9: =H7+H8 -> 16,192,607.44
C10: Особенности расчетов по сделке | D10: Обычная сделка | F10: Максимальная сумма кредита | G10: =G9*$K$10 -> 11,186,000.00 | H10: =H9*$K$10 -> 12,937,893.34 | K10: 79.90% | S10: Цели кредита | T10: Подрядчики
F11: Минимальный размер ПВ | G11: =G9*(100%-$K$10) -> 2,814,000.00 | H11: =H9*(100%-$K$10) -> 3,254,714.09 | S11: Строительство дома на своем участке | T11: Стандарт
C12: Процентная ставка (до субсидирования) | D12: ='Матрица ставок_Инфо'!H4 -> 27.50% | F12: Фактический размер ПВ | G12: =G11 -> 2,814,000.00 | H12: =H11 -> 3,254,714.09 | S12: Покупка земли и строительство дома | T12: Ключевой
C13: Дисконт к ставке (на весь срок кредитования) | D13: 9.50% | F13: Сумма кредита | G13: =G9-G12 -> 11,186,000.00 | H13: =H9-H12 -> 12,937,893.34 | K13: СИ | L13: СИ для ДФО | M13: ГП | N13: IT | O13: Комбо-транш | P13: Базовая
C14: Итоговая процентная ставка | D14: =D12-D13 -> 18.00% | F14: Ставка по кредиту | G14: =D12 -> 27.50% | H14: =G14-D13 -> 18.00% | J14: Клиент "улица" или зп-клиент (НЕ А-Клуб/Сотрудники) БЕЗ личного страхования | K14: ='Матрица ставок_Инфо'!C17 -> 6.0% | L14: ='Матрица ставок_Инфо'!D17 -> 5.0% | M14: ='Матрица ставок_Инфо'!E17 -> 9.0% | N14: ='Матрица ставок_Инфо'!F17 -> 6.0% | O14: ='Матрица ставок_Инфо'!G17 -> 24.0% | P14: ='Матрица ставок_Инфо'!H17 -> 28.5% | Q14: ='Матрица ставок_Инфо'!H21 -> 28.5%
C15: Размер КВ,% | D15: =IF(D13=12.5%,L20,IF(D13=11.5%,L21,IF(D13=10.5%,L22,IF(D13=9.5%,L23,IF(D13=8.5%,L24,IF(D13=7.5%,L25,IF(D13=6.5%,L26,""))))))) -> 21.93% | F15: Платеж по кредиту | G15: =PMT(G14/12,D19,G13) -> -256,416.10 ₽ | H15: =PMT(H14/12,D19,H13) -> -194,958.08 ₽ | J15: Клиент "улица" или зп-клиент (НЕ А-Клуб/Сотрудники) С договором личного страхования | K15: ='Матрица ставок_Инфо'!C18 -> 6.0% | L15: ='Матрица ставок_Инфо'!D18 -> 5.0% | M15: ='Матрица ставок_Инфо'!E18 -> 8.0% | N15: ='Матрица ставок_Инфо'!F18 -> 6.0% | O15: ='Матрица ставок_Инфо'!G18 -> 23.0% | P15: ='Матрица ставок_Инфо'!H18 -> 27.5% | Q15: ='Матрица ставок_Инфо'!H22 -> 27.5%
C16: Размер КВ,руб. | D16: =D15*D27 -> 2,192,607.44 | F16: Процентная переплата | G16: =G15*D19-G13 -> -104,008,629.59 | H16: =H15*D19-H13 -> -83,512,718.44 | J16: Клиент А-Клуб/Сотрудники БЕЗ личного страхования | K16: ='Матрица ставок_Инфо'!C19 -> 6.0% | L16: ='Матрица ставок_Инфо'!D19 -> 5.0% | M16: ='Матрица ставок_Инфо'!E19 -> 9.0% | N16: ='Матрица ставок_Инфо'!F19 -> 6.0% | O16: ='Матрица ставок_Инфо'!G19 -> 24.0% | P16: ='Матрица ставок_Инфо'!H19 -> 28.5% | Q16: ='Матрица ставок_Инфо'!H23 -> 28.5%
J17: Клиент А-Клуб/Сотрудники С договором личного страхования | K17: ='Матрица ставок_Инфо'!C20 -> 6.0% | L17: ='Матрица ставок_Инфо'!D20 -> 5.0% | M17: ='Матрица ставок_Инфо'!E20 -> 8.0% | N17: ='Матрица ставок_Инфо'!F20 -> 6.0% | O17: ='Матрица ставок_Инфо'!G20 -> 23.0% | P17: ='Матрица ставок_Инфо'!H20 -> 27.5% | Q17: ='Матрица ставок_Инфо'!H24 -> 27.5% | S17: 1
C19: Срок кредитования | D19: 362.00 | E19: =IF(MOD(D19-2,12)>0,"Срок кредитования должен быть кратен 12 мес + 2 мес.","") ->  | K19: Размеры дисконтов | L19: Матрица КВ | M19: Доля КВ
C20: Стоимость приобретаемого земельного участка | D20: 6,000,000.00 | K20: 12.50% | L20: ='Матрица КВ'!#REF! ->  | M20: 100% | S20: Категория клиента | T20: Улица или зарплатник
C21: Стоимость строительства | D21: 8,000,000.00 | F21: Выгода по ежемесячному платежу | H21: =H15-G15 -> 61,458.02 | K21: 11.50% | L21: ='Матрица КВ'!E9 -> 0.00% | M21: 50% | T21: Сотрудник/А-Клуб
C22: Общая стоимость для расчета кредита | D22: =D20+D21 -> 14,000,000.00 | F22: Выгода по процентной переплате (с учетом увеличения стоимости подряда) | H22: =H16-G16 -> 20,495,911.15 | K22: 10.50% | L22: ='Матрица КВ'!E8 -> 0.00% | M22: 25%
C23: Размер собственных средств (ПВ)_без учета МСК | D23: 4,000,000.00 | K23: 9.50% | L23: ='Матрица КВ'!E7 -> 21.93% | M23: 0% | T23: Да
C24: Часть ПВ, которая уже внесена на земельный участок | K24: 8.50% | L24: ='Матрица КВ'!E6 -> 19.63% | T24: Нет
C25: Часть ПВ, которая уже внесена на строительство | D25: 0 | F25: =IF(D25>D23,"ОШИБКА!Размер внесенного ПВ меньше заявленного","") ->  | K25: 7.50% | L25: ='Матрица КВ'!E5 -> 17.34%
C26: Размер МСК в счет ПВ | D26: 0 | K26: 6.50% | L26: ='Матрица КВ'!E4 -> 15.06%
C27: Размер кредитных средств | D27: =D22-D23-D26 -> 10,000,000.00 | F27: =IF(AND(#REF!="Госпрограмма 2020",D27>6000000),"ВНИМАНИЕ, сумма кредита не может быть больше 6 млн руб.",IF(AND(OR(#REF!="Семейная ипотека",#REF!="Семейная ипотека (для ДФО)"),D7="МиМО/СПбиЛО",D27>30000000),"ВНИМАНИЕ, сумма кредита (с учетом КОМБО-Ипотеки) не может быть больше 30 млн руб.",IF(AND(OR(#REF!="Семейная ипотека",#REF!="Семейная ипотека (для ДФО)"),OR(D7="иные регионы с численностью СВЫШЕ 1 млн чел.",D7="иные регионы с численностью ДО 1 млн чел.",D7="Краснодарский край"),D27>15000000),"ВНИМАНИЕ, сумма кредита (с учетом КОМБО-Ипотеки) не может быть больше 15 млн руб.",IF(AND(#REF!="IT-Ипотека",OR(D7="МиМО/СПбиЛО",D7="иные регионы с численностью СВЫШЕ 1 млн чел.",D7="Краснодарский край"),D27>30000000),"ВНИМАНИЕ, сумма кредита (с учетом КОМБО-Ипотеки) не может быть больше 30 млн руб.",IF(AND(#REF!="Собственная программа",OR(D7="МиМО/СПбиЛО",D7="Краснодарский край"),D27>50000000),"ВНИМАНИЕ, сумма кредита (с учетом КОМБО-Ипотеки) не может быть больше 50 млн руб.",IF(AND(#REF!="Собственная программа",OR(D7="иные регионы с численностью СВЫШЕ 1 млн чел.",D7="иные регионы с численностью ДО 1 млн чел."),D27>30000000),"ВНИМАНИЕ, сумма кредита (с учетом КОМБО-Ипотеки) не может быть больше 30 млн руб.",IF(AND(#REF!="IT-Ипотека",D7="иные регионы с численностью ДО 1 млн чел.",D27>15000000),"ВНИМАНИЕ, сумма кредита (с учетом КОМБО-Ипотеки) не может быть больше 15 млн руб.",""))))))) -> 
C28: К/З | D28: =D27/D22 -> 71.43%
F32: Пересмотреть формулу, подвязать к новой сумму кредита
C33: Доля КВ в счет увеличения стоимости | D33: 100.00% | S33: Специфика расчетов | T33: Обычная сделка
T34: GoodWood
S37: Программа | T37: Семейная ипотека
C38: РАСПРЕДЕЛЕНИЕ СРЕДСТВ ПО АККРЕДИТИВАМ | T38: Семейная ипотека (для ДФО)
C39: Аккредитивы | D39: Базовые значения | E39: Условия доступа к аккредитиву (Подсказка) | T39: IT-Ипотека
C40: 1 аккредитив (деньги пойдут на оплату зем. участка) | D40: =IF(Цель_кредита="покупка земли и строительство дома",D20-D24,0) -> 0 | E40: =IF(D40="","",'Матрица по аккред._Инфо'!F3) -> Чтобы продавец зем.участка получил деньги за земельный участок, нужно предоставить документы о переходе права на зем. участок и ипотеки в пользу Банка | T40: Собственная программа
C41: 2 аккредитив (деньги пойдут на строительство фундамента) | D41: =IF(D10="GoodWood",(IF(D21*'Матрица по аккред._Инфо'!C12-D25-D26<0,0,D21*'Матрица по аккред._Инфо'!C12-D25-D26)),IF((IF($D$9="Стандарт",($D$21*'Матрица по аккред._Инфо'!C4),IF($D$9="Ключевой",($D$21*'Матрица по аккред._Инфо'!D4),IF($D$9="Эксклюзив",($D$21*'Матрица по аккред._Инфо'!E4),0)))-D25-D26)<0,0,(IF($D$9="Стандарт",($D$21*'Матрица по аккред._Инфо'!C4),IF($D$9="Ключевой",($D$21*'Матрица по аккред._Инфо'!D4),IF($D$9="Эксклюзив",($D$21*'Матрица по аккред._Инфо'!E4),0)))-D25-D26))) -> 2,400,000.00 | E41: =IF(D41="","",'Матрица по аккред._Инфо'!F4) -> Чтобы подрядчик получил деньги за построенный фундамент и частично на дальнейшее строительство клиент должен предоставить документы, подтверждающие готовность фундамента - акт выполненных работ + акт осмотра Моб оценщика (с выездом Моб оценщика) | S41: Регион
C42: 3 аккредитив (деньги пойдут на строительство стенового комплекта) | D42: =IF(D10="GoodWood",(IF(D21*'Матрица по аккред._Инфо'!C12-D25-D26<0,(D21*'Матрица по аккред._Инфо'!C13+D21*'Матрица по аккред._Инфо'!C12-D25-D26),D21*'Матрица по аккред._Инфо'!C13)),IF(((IF($D$9="Стандарт",($D$21*'Матрица по аккред._Инфо'!C4),IF($D$9="Ключевой",($D$21*'Матрица по аккред._Инфо'!D4),IF($D$9="Эксклюзив",($D$21*'Матрица по аккред._Инфо'!E4),0)))-D25-D26)<0),IF($D$9="Стандарт",($D$21*'Матрица по аккред._Инфо'!C5),IF($D$9="Ключевой",($D$21*'Матрица по аккред._Инфо'!D5),IF($D$9="Эксклюзив",($D$21*'Матрица по аккред._Инфо'!E5),0)))+(IF($D$9="Стандарт",($D$21*'Матрица по аккред._Инфо'!C4),IF($D$9="Ключевой",($D$21*'Матрица по аккред._Инфо'!D4),IF($D$9="Эксклюзив",($D$21*'Матрица по аккред._Инфо'!E4),0)))-D25-D26),IF($D$9="Стандарт",($D$21*'Матрица по аккред._Инфо'!C5),IF($D$9="Ключевой",($D$21*'Матрица по аккред._Инфо'!D5),IF($D$9="Эксклюзив",($D$21*'Матрица по аккред._Инфо'!E5),0))))) -> 1,200,000.00 | E42: =IF(D42="","",'Матрица по аккред._Инфо'!F5) -> После того, как стеновой комплект будет построен, подрядчик может получить деньги для продолжения строительства жилого дома. Для этого потребуется предоставить в Банк акт выполненных работ по завершению строительства стенового компекта + акт осмотра Моб оценщика (с выездом Моб оценщика) | T42: МиМО/СПбиЛО
C43: 4 аккредитив (деньги пойдут на завершение строительства) | D43: =IF(D10="GoodWood",(D21*'Матрица по аккред._Инфо'!C14),IF($D$9="Стандарт",($D$21*'Матрица по аккред._Инфо'!C7),IF($D$9="Ключевой",($D$21*'Матрица по аккред._Инфо'!D6),IF($D$9="Эксклюзив",($D$21*'Матрица по аккред._Инфо'!E7),0)))) -> 2,800,000.00 | E43: =IF(D43="","",IF(D10="GoodWood",'Матрица по аккред._Инфо'!F14,'Матрица по аккред._Инфо'!F7)) -> После того, как дом будет построен, Подрядчик получает оставшуюся сумму средств. Для этого необходимо предоставить в Банк акт выполненных работ по строительству жилого дома + акт осмотра Моб оценщика (с выездом Моб оценщика) | T43: Краснодарский край
C44: Проверка_общая стоимость строительства (с учетом внесенного ПВ и МСК) | D44: =SUM(D41:D43)+D25+D26 -> 6,400,000.00 | T44: иные регионы с численностью СВЫШЕ 1 млн чел.
T45: иные регионы с численностью ДО 1 млн чел.

Sheet Расчеты
C1: ИЗМЕНЯЕМЫЕ ЯЧЕЙКИ
C4: КЛЮЧЕВЫЕ ПАРАМЕТРЫ КРЕДИТОВАНИЯ | F4: ОБЗОР ИТОГОВЫХ ПАРАМЕТРОВ | I4: =IF(D18=0%, "ВНИМАНИЕ!!!! ПРИ ТАКОМ СРОКЕ ДЕЙСТВИЯ ЛЬГОТНОЙ СТАВКИ НУЖНО ВЫБРАТЬ ДРУГОЙ ДИСКОНТ К СТАВКЕ","") -> 
G5: Стандартные условия (без субсидии) | I5: Выгодные условия (с субсидированием ставки) | U5: Да
C6: Срок кредитования, мес. | D6: 362.00 | G6: Подряд | H6: Земля | I6: Подряд | J6: Земля | K6: Подряд + земля | U6: Нет
C7: Стоимость земли, руб. | D7: 1,000,000.00 | F7: Стоимость по договору (с учетом удорожания по подряду) | G7: =D8 -> 8,000,000.00 | H7: =D7 -> 1,000,000.00 | I7: =IF(D15="без субсидирования","",D8+H19*D19) -> 8,681,661.10 | J7: =IF(D15="без субсидирования","",D7) -> 1,000,000.00 | K7: =IF(D15="без субсидирования","",IF(OR(D7="",D7=0),"",I7+J7)) -> 9,681,661.10
C8: Стоимость строительства, руб. | D8: 8,000,000.00 | F8: Максимальная сумма кредита | G8: =G7*$M$10 -> 4,000,000.00 | H8: =H7*$M$10 -> 500,000.00 | I8: =IF(D15="без субсидирования","",I7*$M$10) -> 4,340,830.55 | J8: =IF(D15="без субсидирования","",J7*$M$10) -> 500,000.00 | K8: =IF(D15="без субсидирования","",IF(OR(D7="",D7=0),"",I8+J8)) -> 4,840,830.55
C9: Личное страхование | D9: Да | F9: Минимальный размер ПВ | G9: =G7*(100%-$M$10) -> 4,000,000.00 | H9: =H7*(100%-$M$10) -> 500,000.00 | I9: =IF(D15="без субсидирования","",I7*(100%-$M$10)) -> 4,340,830.55 | J9: =IF(D15="без субсидирования","",J7*(100%-$M$10)) -> 500,000.00 | K9: =IF(D15="без субсидирования","",IF(OR(D7="",D7=0),"",I9+J9)) -> 4,840,830.55
C10: Регион приобретения недвижимости | D10: МиМО/СПбиЛО | F10: Фактический размер ПВ | G10: 1,608,000.00 | H10: 402,000.00 | I10: 4,350,000.00 | J10: 500,000.00 | K10: =IF(D15="без субсидирования","",IF(OR(D7="",D7=0),"",I10+J10)) -> 4,850,000.00 | M10: 50.00% | U10: Цели кредита | V10: Подрядчики
C11: Категория подрядчика | D11: Стандарт | F11: Итоговая сумма кредита | G11: =G7-G10 -> 6,392,000.00 | H11: =IF(OR(D7="",D7=0),"",H7-H10) -> 598,000.00 | I11: =IF(D15="без субсидирования","",IF(OR(I10="",I10=0,I10<I9),I7-I9,I7-I10)) -> 4,331,661.10 | J11: =IF(D15="без субсидирования","",IF(OR(D7="",D7=0),"",J7-J10)) -> 500,000.00 | K11: =IF(D15="без субсидирования","",IF(OR(D7="",D7=0),"",I11+J11)) -> 4,831,661.10 | U11: Строительство дома на своем участке | V11: Стандарт
C12: Особенности расчетов по сделке | D12: Обычная сделка | F12: Ставка по кредиту (на льготный период) | G12: =IF(D9="Нет",'Матрица ставок_Инфо'!H17,IF(D9="Да",'Матрица ставок_Инфо'!H18,"")) -> 27.5% | H12: =IF(OR(H7="",H7=0),"",G12) -> 27.50% | I12: =IF(D15="без субсидирования","",G12-D15) -> 17.00% | J12: =IF(D15="без субсидирования","",IF(OR(J7="",J7=0),"",G12)) -> 27.50% | K12: =IF(D15="без субсидирования","",IF(OR(D7="",D7=0),"",IF(OR(J7="",J7=0),I12,(I12*I11+J12*J11)/K11))) -> 18.09% | U12: Покупка земли и строительство дома | V12: Ключевой
F13: Ставка по кредиту (после окончания льготного периода) | G13: =IF(D9="Нет",'Матрица ставок_Инфо'!H17,IF(D9="Да",'Матрица ставок_Инфо'!H18,"")) -> 27.5% | H13: =IF(OR(H7="",H7=0),"",G13) -> 27.50% | I13: =IF(D15="без субсидирования","",IF(D16="весь срок",I12,IF(D9="Нет",'Матрица ставок_Инфо'!H17,IF(D9="Да",'Матрица ставок_Инфо'!H18,"")))) -> 27.50% | J13: =IF(D15="без субсидирования","",IF(OR(J7="",J7=0),"",G13)) -> 27.50% | K13: =IF(D15="без субсидирования","",IF(OR(D7="",D7=0),"",IF(OR(J7="",J7=0),I13,(I13*I11+J13*J11)/K11))) -> 27.50% | M13: СИ | N13: СИ для ДФО | O13: ГП | P13: IT | Q13: Комбо-транш | R13: Базовая | V13: Эксклюзив
C14: Процентная ставка (до субсидирования), % | D14: =IF(D9="Нет",'Матрица ставок_Инфо'!H17,IF(D9="Да",'Матрица ставок_Инфо'!H18,"")) -> 27.50% | F14: Платеж по кредиту (на льготный период) | G14: =PMT(G12/12,D6,-G11) -> 146,523.49 ₽ | H14: =IF(OR(H7="",H8=0),"",PMT(H12/12,D6,-H11)) -> 13,707.92 ₽ | I14: =IF(D15="без субсидирования","",PMT(I12/12,D6,-I11)) -> 61,744.53 ₽ | J14: =IF(D15="без субсидирования","",IF(OR(J7="",J7=0),"",PMT(J12/12,D6,-J11))) -> 11,461.47 ₽ | K14: =IF(D15="без субсидирования","",IF(OR(D7="",D7=0),"",IF(OR(J7="",J7=0),I14,PMT(K12/12,D6,-K11)))) -> 73,148.86 ₽ | L14: Клиент "улица" или зп-клиент (НЕ А-Клуб/Сотрудники) БЕЗ личного страхования | M14: ='Матрица ставок_Инфо'!C17 -> 6.0% | N14: ='Матрица ставок_Инфо'!D17 -> 5.0% | O14: ='Матрица ставок_Инфо'!E17 -> 9.0% | P14: ='Матрица ставок_Инфо'!F17 -> 6.0% | Q14: ='Матрица ставок_Инфо'!G17 -> 24.0% | R14: ='Матрица ставок_Инфо'!H17 -> 28.5% | S14: ='Матрица ставок_Инфо'!H21 -> 28.5%
C15: Дисконт к ставке (на весь срок кредитования), % | D15: 10.50% | F15: Процентная переплата | G15: =IF(D16="весь срок",G14*D6-G11,"") ->  | H15: =IF(OR(H7="",H7=0),"",IF(D16="весь срок",(H14*D6-H11),"")) ->  | I15: =IF(D15="без субсидирования","",IF(D16="весь срок",(I14*D6-I11),"")) ->  | J15: =IF(D15="без субсидирования","",IF(OR(J7="",J7=0),"",IF(D16="весь срок",(J14*D6-J11),""))) ->  | K15: =IF(D15="без субсидирования","",IF(OR(K7="",K7=0),"",IF(D16="весь срок",(K14*D6-K11),""))) ->  | L15: Клиент "улица" или зп-клиент (НЕ А-Клуб/Сотрудники) С договором личного страхования | M15: ='Матрица ставок_Инфо'!C18 -> 6.0% | N15: ='Матрица ставок_Инфо'!D18 -> 5.0% | O15: ='Матрица ставок_Инфо'!E18 -> 8.0% | P15: ='Матрица ставок_Инфо'!F18 -> 6.0% | Q15: ='Матрица ставок_Инфо'!G18 -> 23.0% | R15: ='Матрица ставок_Инфо'!H18 -> 27.5% | S15: ='Матрица ставок_Инфо'!H22 -> 27.5%
C16: Срок действия льготной ставки | D16: 2 года | F16: =IF(AND(OR(D15=11.5%,D15=10.5%,D15=9.5%,D15=8.5%,D15=7.5%,D15=6.5%),OR(AND(G10<G9,G10>0),AND(H10<H9,H10>0),AND(I10<I9,I10>0),AND(J10<J9,J10>0))),"Внимание! Необходимо увеличить ПВ (не может быть ниже минимального)",IF(AND(D15="без субсидирования",OR(AND(G10<G9,G10>0),AND(H10<H9,H10>0),)),"Внимание! Необходимо увеличить ПВ (не может быть ниже минимального)","")) -> Внимание! Необходимо увеличить ПВ (не может быть ниже минимального) | H16: =IF(OR(D7="",D7=0),"",IF(OR(H10="",H10=0,J10="",J10=0,),"Внимание, заполните фактический размер ПВ по земле","")) ->  | L16: Клиент А-Клуб/Сотрудники БЕЗ личного страхования | M16: ='Матрица ставок_Инфо'!C19 -> 6.0% | N16: ='Матрица ставок_Инфо'!D19 -> 5.0% | O16: ='Матрица ставок_Инфо'!E19 -> 9.0% | P16: ='Матрица ставок_Инфо'!F19 -> 6.0% | Q16: ='Матрица ставок_Инфо'!G19 -> 24.0% | R16: ='Матрица ставок_Инфо'!H19 -> 28.5% | S16: ='Матрица ставок_Инфо'!H23 -> 28.5%
C17: Итоговая процентная ставка, % | D17: =IF(D15="без субсидирования","",D14-D15) -> 17.00% | F17: Выгода по ежемесячному платежу | H17: =IF(D15="без субсидирования","",IF(OR(D7="",D7=0),I14-G14,K14-(G14+H14))) -> -87,082.55 | L17: Клиент А-Клуб/Сотрудники С договором личного страхования | M17: ='Матрица ставок_Инфо'!C20 -> 6.0% | N17: ='Матрица ставок_Инфо'!D20 -> 5.0% | O17: ='Матрица ставок_Инфо'!E20 -> 8.0% | P17: ='Матрица ставок_Инфо'!F20 -> 6.0% | Q17: ='Матрица ставок_Инфо'!G20 -> 23.0% | R17: ='Матрица ставок_Инфо'!H20 -> 27.5% | S17: ='Матрица ставок_Инфо'!H24 -> 27.5% | U17: 1
C18: Размер КВ,% | D18: =IF(AND(D15=12.5%,D16="весь срок"),N21,IF(AND(D15=11.5%,D16="весь срок"),N22,IF(AND(D15=10.5%,D16="весь срок"),N23,IF(AND(D15=9.5%,D16="весь срок"),N24,IF(AND(D15=8.5%,D16="весь срок"),N25,IF(AND(D15=7.5%,D16="весь срок"),N26,IF(AND(D15=6.5%,D16="весь срок"),N27,IF(AND(D15=12.5%,D16="1 год"),P21,IF(AND(D15=11.5%,D16="1 год"),P22,IF(AND(D15=10.5%,D16="1 год"),P23,IF(AND(D15=9.5%,D16="1 год"),P24,IF(AND(D15=8.5%,D16="1 год"),P25,IF(AND(D15=7.5%,D16="1 год"),P26,IF(AND(D15=6.5%,D16="1 год"),P27,IF(AND(D15=12.5%,D16="2 года"),Q21,IF(AND(D15=11.5%,D16="2 года"),Q22,IF(AND(D15=10.5%,D16="2 года"),Q23,IF(AND(D15=9.5%,D16="2 года"),Q24,IF(AND(D15=8.5%,D16="2 года"),Q25,IF(AND(D15=7.5%,D16="2 года"),Q26,IF(AND(D15=6.5%,D16="2 года"),Q27,""))))))))))))))))))))) -> 15.74% | F18: Выгода по процентной переплате (с учетом увеличения стоимости подряда) | H18: =IF(D15="без субсидирования","",IF(OR(D16="1 год",D16="2 года"),"",IF(OR(D7="",D7=0),I15-G15,K15-(G15+H15)))) -> 
C19: Доля базового КВ в счет увеличения стоимости | D19: 100.00% | F19: КВ Банку (с учетом удорожения стоимости строительства) | H19: =IF(D15="без субсидирования",0,I11*D18) -> 681,661.10 | M19: Размеры дисконтов | N19: Матрица КВ (весь срок) | O19: Доля КВ | P19: КВ на 1 год | Q19: КВ на 2 года
C21: ЗАПРАШИВАЕМЫЕ ПАРАМЕТРЫ | E21: =IF(MOD(D6-2,12)>0,"Срок кредитования должен быть кратен 12 мес + 2 мес.","") ->  | M21: 12.50% | N21: 0.00% | O21: 100% | P21: 0.00% | Q21: 0.00% | R21: весь срок | U21: Категория клиента | V21: Улица или зарплатник
M22: 11.50% | N22: ='Матрица КВ'!E9 -> 0.00% | O22: 50% | P22: ='Матрица КВ'!F9 -> 10.22% | Q22: ='Матрица КВ'!G9 -> 17.27% | R22: 1 год
M23: 10.50% | N23: ='Матрица КВ'!E8 -> 0.00% | O23: 25% | P23: ='Матрица КВ'!F8 -> 9.32% | Q23: ='Матрица КВ'!G8 -> 15.74% | R23: 2 года
M24: 9.50% | N24: ='Матрица КВ'!E7 -> 21.93% | O24: 0% | P24: ='Матрица КВ'!F7 -> 8.42% | Q24: ='Матрица КВ'!G7 -> 14.22%
C25: =IF(D18=0%, "ПРИ ТАКОМ СРОКЕ ДЕЙСТВИЯ ЛЬГОТНОЙ СТАВКИ НУЖНО ВЫБРАТЬ ДРУГОЙ ДИСКОНТ К СТАВКЕ","") ->  | M25: 8.50% | N25: ='Матрица КВ'!E6 -> 19.63% | P25: ='Матрица КВ'!F6 -> 7.53% | Q25: ='Матрица КВ'!G6 -> 12.71% | V25: Сотрудник/А-Клуб
C26: ДОП ИНФОРМАЦИЯ ДЛЯ АККРЕДИТИВОВ | M26: 7.50% | N26: ='Матрица КВ'!E5 -> 17.34% | P26: ='Матрица КВ'!F5 -> 6.64% | Q26: ='Матрица КВ'!G5 -> 11.20%
C27: Аванс, из них: | M27: 6.50% | N27: ='Матрица КВ'!E4 -> 15.06% | P27: ='Матрица КВ'!F4 -> 5.75% | Q27: ='Матрица КВ'!G4 -> 9.70%
C28: часть ПВ, которая уже внесена на земельный участок | D28: 0 | M28: без субсидирования | V28: Да
C29: часть ПВ, которая будет внесена подрядчика напрямую (без аккредитива) | V29: Нет
C30: Размер МСК в счет ПВ | D30: 0
U31: Специфика расчетов | V31: Обычная сделка
V32: GoodWood
C33: РАСПРЕДЕЛЕНИЕ СРЕДСТВ ПО АККРЕДИТИВАМ
C34: Аккредитивы | D34: Базовые значения | E34: Условия доступа к аккредитиву (Подсказка)
C35: 0 аккредитив (деньги пойдут на оплату земельного участка) | D35: =IF(OR(D7="",D7=0),"",D7-D28) -> 1,000,000.00 | E35: Чтобы продавец земельного участка получил деньги клиент/продавец должен предоставить документы, подтверждающие регистрацию ипотеки на зем.участок в пользу Банка | U35: Программа | V35: Семейная ипотека
C36: 1 аккредитив (деньги пойдут на оплату построенного фундамента и частичную оплату дальнейшего строительства) | D36: =IF(AND(D12="GoodWood",OR(D15=11.5%,D15=10.5%,D15=9.5%,D15=8.5%,D15=7.5%,D15=6.5%)),IF(I7*'Матрица по аккред._Инфо'!C12-D29-D30<0,0,I7*'Матрица по аккред._Инфо'!C12-D29-D30),IF(AND(D11="Стандарт",OR(D15=11.5%,D15=10.5%,D15=9.5%,D15=8.5%,D15=7.5%,D15=6.5%)),IF(I7*'Матрица по аккред._Инфо'!C4-D29-D30<0,0,I7*'Матрица по аккред._Инфо'!C4-D29-D30),IF(AND(Расчеты!D11="Ключевой",OR(D15=11.5%,D15=10.5%,D15=9.5%,D15=8.5%,D15=7.5%,D15=6.5%)),IF(I7*'Матрица по аккред._Инфо'!D4-D29-D30<0,0,I7*'Матрица по аккред._Инфо'!D4-D29-D30),IF(AND(Расчеты!D11="Эксклюзив",OR(D15=11.5%,D15=10.5%,D15=9.5%,D15=8.5%,D15=7.5%,D15=6.5%)),IF(I7*'Матрица по аккред._Инфо'!E4-D29-D30<0,0,I7*'Матрица по аккред._Инфо'!E4-D29-D30),IF(AND(Расчеты!D12="GoodWood",D15="без субсидирования"),IF(G7*'Матрица по аккред._Инфо'!C12-D29-D30<0,0,G7*'Матрица по аккред._Инфо'!C12-D29-D30),IF(AND(Расчеты!D11="Стандарт",D15="без субсидирования"),IF(G7*'Матрица по аккред._Инфо'!C4-D29-D30<0,0,G7*'Матрица по аккред._Инфо'!C4-D29-D30),IF(AND(Расчеты!D11="Ключевой",D15="без субсидирования"),IF(G7*'Матрица по аккред._Инфо'!D4-D29-D30<0,0,G7*'Матрица по аккред._Инфо'!D4-D29-D30),IF(AND(Расчеты!D11="Эксклюзив",D15="без субсидирования"),IF(G7*'Матрица по аккред._Инфо'!E4-D29-D30<0,0,G7*'Матрица по аккред._Инфо'!E4-D29-D30),"")))))))) -> 2,604,498.33 | E36: После того, как фундамент будет построен, подрядчик может получить деньги для продолжения строительства жилого дома. Для этого потребуется предоставить в Банк акт выполненных работ по строительству фундамента + акт осмотра Моб.оценщика (с выездом) | V36: Семейная ипотека (для ДФО)
C37: 2 аккредитив (деньги пойдут на оплату стенового комплекта и дальнейшее строительство теплого контура - крыша, окна, двери) | D37: =IF(AND(D12="GoodWood",OR(D15=11.5%,D15=10.5%,D15=9.5%,D15=8.5%,D15=7.5%,D15=6.5%)),IF(I7*'Матрица по аккред._Инфо'!C12-D29-D30<0,I7*'Матрица по аккред._Инфо'!C13+I7*'Матрица по аккред._Инфо'!C12-D29-D30,I7*'Матрица по аккред._Инфо'!C13),IF(AND(D11="Стандарт",OR(D15=11.5%,D15=10.5%,D15=9.5%,D15=8.5%,D15=7.5%,D15=6.5%)),IF(I7*'Матрица по аккред._Инфо'!C4-D29-D30<0,I7*'Матрица по аккред._Инфо'!C5+I7*'Матрица по аккред._Инфо'!C4-D29-D30,I7*'Матрица по аккред._Инфо'!C5),IF(AND(Расчеты!D11="Ключевой",OR(D15=11.5%,D15=10.5%,D15=9.5%,D15=8.5%,D15=7.5%,D15=6.5%)),IF(I7*'Матрица по аккред._Инфо'!D4-D29-D30<0,I7*'Матрица по аккред._Инфо'!D5+I7*'Матрица по аккред._Инфо'!D4-D29-D30,I7*'Матрица по аккред._Инфо'!D5),IF(AND(Расчеты!D11="Эксклюзив",OR(D15=11.5%,D15=10.5%,D15=9.5%,D15=8.5%,D15=7.5%,D15=6.5%)),IF(I7*'Матрица по аккред._Инфо'!E4-D29-D30<0,I7*'Матрица по аккред._Инфо'!E5+I7*'Матрица по аккред._Инфо'!E4-D29-D30,I7*'Матрица по аккред._Инфо'!E5),IF(AND(Расчеты!D12="GoodWood",D15="без субсидирования"),IF(G7*'Матрица по аккред._Инфо'!C12-D29-D30<0,G7*'Матрица по аккред._Инфо'!C13+G7*'Матрица по аккред._Инфо'!C12-D29-D30,G7*'Матрица по аккред._Инфо'!C13),IF(AND(Расчеты!D11="Стандарт",D15="без субсидирования"),IF(G7*'Матрица по аккред._Инфо'!C4-D29-D30<0,G7*'Матрица по аккред._Инфо'!C5+G7*'Матрица по аккред._Инфо'!C4-D29-D30,G7*'Матрица по аккред._Инфо'!C5),IF(AND(Расчеты!D11="Ключевой",D15="без субсидирования"),IF(G7*'Матрица по аккред._Инфо'!D4-D29-D30<0,G7*'Матрица по аккред._Инфо'!D5+G7*'Матрица по аккред._Инфо'!D4-D29-D30,G7*'Матрица по аккред._Инфо'!D5),IF(AND(Расчеты!D11="Эксклюзив",D15="без субсидирования"),IF(G7*'Матрица по аккред._Инфо'!E4-D29-D30<0,G7*'Матрица по аккред._Инфо'!E5+G7*'Матрица по аккред._Инфо'!E4-D29-D30,G7*'Матрица по аккред._Инфо'!E5),"")))))))) -> 1,302,249.17 | E37: После того, как будут построены стены, подрядчик может получить деньги для продолжения строительства жилого дома. Для этого потребуется предоставить в Банк акт выполненных работ по строительству стен + акт осмотра Моб оценщика (с выездом) | V37: IT-Ипотека
C38: 3 аккредитив (деньги пойдут на оплату расходов на теплый контур, а также на коммуникации и отделку) | D38: =IF(AND(D12="GoodWood",OR(D15=11.5%,D15=10.5%,D15=9.5%,D15=8.5%,D15=7.5%,D15=6.5%)),I7*'Матрица по аккред._Инфо'!C14,IF(AND(D11="Стандарт",OR(D15=11.5%,D15=10.5%,D15=9.5%,D15=8.5%,D15=7.5%,D15=6.5%)),I7*'Матрица по аккред._Инфо'!C6,IF(AND(Расчеты!D11="Ключевой",OR(D15=11.5%,D15=10.5%,D15=9.5%,D15=8.5%,D15=7.5%,D15=6.5%)),I7*'Матрица по аккред._Инфо'!D6,IF(AND(Расчеты!D11="Эксклюзив",OR(D15=11.5%,D15=10.5%,D15=9.5%,D15=8.5%,D15=7.5%,D15=6.5%)),I7*'Матрица по аккред._Инфо'!E6,IF(AND(Расчеты!D12="GoodWood",D15="без субсидирования"),G7*'Матрица по аккред._Инфо'!C14,IF(AND(Расчеты!D11="Стандарт",D15="без субсидирования"),G7*'Матрица по аккред._Инфо'!C6,IF(AND(Расчеты!D11="Ключевой",D15="без субсидирования"),G7*'Матрица по аккред._Инфо'!D6,IF(AND(Расчеты!D11="Эксклюзив",D15="без субсидирования"),G7*'Матрица по аккред._Инфо'!E6,"")))))))) -> 3,038,581.39 | E38: После того, как будет построен теплый контур стены, подрядчик может получить деньги для продолжения строительства жилого дома. Для этого потребуется предоставить в Банк акт выполненных работ по строительству теплого контура + акт осмотра Моб оценщика (с выездом) | V38: Собственная программа
C39: 4 аккредитив (пост-оплата) | D39: =IF(AND(D12="GoodWood",OR(D15=11.5%,D15=10.5%,D15=9.5%,D15=8.5%,D15=7.5%,D15=6.5%)),I7*'Матрица по аккред._Инфо'!C15,IF(AND(D11="Стандарт",OR(D15=11.5%,D15=10.5%,D15=9.5%,D15=8.5%,D15=7.5%,D15=6.5%)),I7*'Матрица по аккред._Инфо'!C7,IF(AND(Расчеты!D11="Ключевой",OR(D15=11.5%,D15=10.5%,D15=9.5%,D15=8.5%,D15=7.5%,D15=6.5%)),I7*'Матрица по аккред._Инфо'!D7,IF(AND(Расчеты!D11="Эксклюзив",OR(D15=11.5%,D15=10.5%,D15=9.5%,D15=8.5%,D15=7.5%,D15=6.5%)),I7*'Матрица по аккред._Инфо'!E7,IF(AND(Расчеты!D12="GoodWood",D15="без субсидирования"),G7*'Матрица по аккред._Инфо'!C15,IF(AND(Расчеты!D11="Стандарт",D15="без субсидирования"),G7*'Матрица по аккред._Инфо'!C7,IF(AND(Расчеты!D11="Ключевой",D15="без субсидирования"),G7*'Матрица по аккред._Инфо'!D7,IF(AND(Расчеты!D11="Эксклюзив",D15="без субсидирования"),G7*'Матрица по аккред._Инфо'!E7,"")))))))) -> 1,736,332.22 | E39: После того, как дом будет построен, Подрядчик получает оставшуюся сумму средств. Для этого необходимо предоставить в Банк акт выполненных работ по строительству жилого дома + акт осмотра Моб оценщика (с выездом)
C40: Проверка_общая стоимость строительства (с учетом внесенного ПВ и МСК) | D40: =SUM(D36:D39)+D29+D30 -> 8,681,661.10 | U40: Регион
V41: МиМО/СПбиЛО
V42: Краснодарский край
V43: иные регионы с численностью СВЫШЕ 1 млн чел.
V44: иные регионы с численностью ДО 1 млн чел.

Sheet Матрица КВ
B2: Дисконт к ставке (на весь срок) | C2: Итоговая ставка для клиента | D2: Итоговая ставка для клиента (БЕЗ страховки) | E2: Размер КВ (итоговый)_снижение ставки на весь срок | F2: Размер КВ (итоговый)_снижение ставки на 12 мес. | G2: Размер КВ (итоговый)_снижение ставки на 24 мес.
C3: (со страховкой)
B4: 6.50% | C4: ='Матрица ставок_Инфо'!$H$18-'Матрица КВ'!B4 -> 21.00% | D4: ='Матрица ставок_Инфо'!$H$17-'Матрица КВ'!B4 -> 22.00% | E4: 15.06% | F4: 5.75% | G4: 9.70%
B5: 7.50% | C5: ='Матрица ставок_Инфо'!$H$18-'Матрица КВ'!B5 -> 20.00% | D5: ='Матрица ставок_Инфо'!$H$17-'Матрица КВ'!B5 -> 21.00% | E5: 17.34% | F5: 6.64% | G5: 11.20%
B6: 8.50% | C6: ='Матрица ставок_Инфо'!$H$18-'Матрица КВ'!B6 -> 19.00% | D6: ='Матрица ставок_Инфо'!$H$17-'Матрица КВ'!B6 -> 20.00% | E6: 19.63% | F6: 7.53% | G6: 12.71%
B7: 9.50% | C7: ='Матрица ставок_Инфо'!$H$18-'Матрица КВ'!B7 -> 18.00% | D7: ='Матрица ставок_Инфо'!$H$17-'Матрица КВ'!B7 -> 19.00% | E7: 21.93% | F7: 8.42% | G7: 14.22%
B8: 10.50% | C8: ='Матрица ставок_Инфо'!$H$18-'Матрица КВ'!B8 -> 17.00% | D8: ='Матрица ставок_Инфо'!$H$17-'Матрица КВ'!B8 -> 18.00% | F8: 9.32% | G8: 15.74%
B9: 11.50% | C9: ='Матрица ставок_Инфо'!$H$18-'Матрица КВ'!B9 -> 16.00% | D9: ='Матрица ставок_Инфо'!$H$17-'Матрица КВ'!B9 -> 17.00% | F9: 10.22% | G9: 17.27%

Sheet Ввод параметров (hidden)
B2: Категория клиента | C2: Зарплатник/Сотрудник/А-Клуб
B3: Личное страхование | C3: Да
B5: Регион приобретения недвижимости | C5: МиМО/СПбиЛО
B6: Программа кредитования | C6: Госпрограмма 2020 | L6: Цели кредита | M6: Подрядчики
B7: Цель кредита | C7: покупка земли и строительство дома | D7: Заполняет сотрудник ОП!!! | L7: строительство дома на своем участке | M7: Стандарт
B8: Категория подрядчика | C8: Ключевой | D8: Заполняет сотрудник ОП!!! Категория партнера устанавливается при аккредитации. В ПЕГУ залит справочник, при выборе партнера видно, к какой категории он относится. Если это новый партнер, который еще не аккредитован, то по умолчанию при аккредитации ему будет присвоена категории Стандарт | L8: покупка земли и строительство дома | M8: Ключевой
G9: Клиент "улица" (НЕ Зарплатный клиент/А-Клуб/Сотрудники) БЕЗ личного страхования | H9: ='Матрица ставок_Инфо'!C17 -> 6.00% | I9: ='Матрица ставок_Инфо'!E17 -> 9.00% | J9: ='Матрица ставок_Инфо'!G17 -> 24.00% | M9: Эксклюзив
B10: Исходные данные для расчетов | G10: Клиент "улица" (НЕ Зарплатный клиент/А-Клуб/Сотрудники) С договором личного страхования | H10: ='Матрица ставок_Инфо'!C18 -> 6.00% | I10: ='Матрица ставок_Инфо'!E18 -> 8.00% | J10: ='Матрица ставок_Инфо'!G18 -> 23.00%
B11: Стоимость приобретаемого земельного участка | C11: 1,000,000.00 | D11: Заполняет сотрудник ОП ТОЛЬКО при цели кредита "Покупка земли и строительство дома"!!! | G11: Клиент Зарплатный клиент/А-Клуб/Сотрудники БЕЗ личного страхования | H11: ='Матрица ставок_Инфо'!C19 -> 6.00% | I11: ='Матрица ставок_Инфо'!E19 -> 9.00% | J11: ='Матрица ставок_Инфо'!G19 -> 24.00% | L11: 1
B12: Стоимость строительства | C12: 12,000,000.00 | D12: Заполняет сотрудник ОП!!! | G12: Клиент Зарплатный клиент/А-Клуб/Сотрудники С договором личного страхования | H12: ='Матрица ставок_Инфо'!C20 -> 6.00% | I12: ='Матрица ставок_Инфо'!E20 -> 8.00% | J12: ='Матрица ставок_Инфо'!G20 -> 23.00%
B13: Общая стоимость для расчета кредита | C13: =C11+C12 -> 13,000,000.00 | D13: Рассчитывается автоматически
B14: Размер собственных средств (ПВ)_без учета МСК | C14: 3,200,000.00 | D14: Заполняет сотрудник ОП!!! | L14: Категория клиента | M14: Улица
B15: Часть ПВ, которая уже внесена на земельный участок | C15: 0 | D15: Заполняет сотрудник ОП, если по земле был внесен аванс!!! | M15: Зарплатник/Сотрудник/А-Клуб
B16: Часть ПВ, которая уже внесена на строительство | C16: 0 | D16: Заполняет сотрудник ОП, если по договору подряда был внесен аванс!!!
B17: Размер МСК в счет ПВ | C17: 800,000.00 | D17: Заполняет сотрудник ОП при использовании МСК!!!
B18: Размер кредитных средств | C18: =C13-C14-C17 -> 9,000,000.00 | D18: =IF(C18>12000000,"Внимание, превышена максимальная суммы кредита. Требуется Комбо-ипотека","") ->  | M18: Нет
B19: К/З | C19: =C18/C13 -> 69% | D19: =IF(C19>79.9%,"Внимание! Необходимо увеличить размер ПВ; предельный К/З = 79,9%","") -> 
B22: Расчетные данные | C22: Часть кредита по госпрограмме | D22: Часть кредита по Комбо-ипотеке
B23: Сумма кредита | C23: =IF(AND(C5="МиМО/СПбиЛО",C18>12000000),12000000,IF(AND(C5="иные регионы",C18>6000000),6000000,C18)) -> 9,000,000.00 | D23: =IF(OR(C23=12000000,C23=6000000),(C18-C23),"") -> 
B24: Ставка по кредиту | C24: =IF(AND(C2="Улица",C3="Да",C6="Семейная ипотека"),H10,IF(AND(C2="Зарплатник/Сотрудник/А-Клуб",C3="Да",C6="Семейная ипотека"),H12,IF(AND(C2="Улица",C3="Да",C6="Госпрограмма 2020"),I10,IF(AND(C2="Зарплатник/Сотрудник/А-Клуб",C3="Да",C6="Госпрограмма 2020"),I12,IF(AND(C2="Улица",C3="Нет",C6="Семейная ипотека"),H9,IF(AND(C2="Зарплатник/Сотрудник/А-Клуб",C3="Нет",C6="Семейная ипотека"),H11,IF(AND(C2="Улица",C3="Нет",C6="Госпрограмма 2020"),I9,IF(AND(C2="Зарплатник/Сотрудник/А-Клуб",C3="Нет",C6="Госпрограмма 2020"),I11,"")))))))) -> 8.00% | D24: =IF(AND(C5="МиМО/СПбиЛО",C18<12000000),"",IF(AND(C2="Улица",C3="Да"),J10,IF(AND(C2="Зарплатник/Сотрудник/А-Клуб",C3="Да"),J12,IF(AND(C2="Улица",C3="Нет"),J9,IF(AND(C2="Зарплатник/Сотрудник/А-Клуб",C3="Нет"),J11,IF(AND(C5="иные регионы",C18<6000000),"",IF(AND(C2="Улица",C3="Да"),J10,IF(AND(C2="Зарплатник/Сотрудник/А-Клуб",C3="Да"),J12,IF(AND(C2="Улица",C3="Нет"),J9,IF(AND(C2="Зарплатник/Сотрудник/А-Клуб",C3="Нет"),J11,"")))))))))) ->  | L24: Программа | M24: Семейная ипотека
B25: Средневзвешенная ставка (с учетом КОМБО-Ипотеки) | C25: =IF(C18>12000000,(C23*C24+(D23)*D24)/(C18),C24) -> 8.00% | M25: Госпрограмма 2020
B26: Срок кредитования, мес. | C26: 242.00 | D26: =IF(MOD(C26-2,12)>0,"Срок кредитования должен быть кратен 12 мес + 2 мес.","") -> 
B27: Платеж по кредиту | C27: =PMT(C25/12,C26,C18) -> -75,027.38 ₽ | D27: Рассчитывается автоматически
L28: Регион | M28: МиМО/СПбиЛО
M29: иные регионы
B30: Аккредитивы | C30: Базовые значения | D30: Условия доступа к аккредитиву (Подсказка)
B31: 1 аккредитив (деньги пойдут на оплату зем. участка) | C31: =IF(Цель_кредита="покупка земли и строительство дома",C11-C15,0) -> 1,000,000.00 | D31: =IF(C31="","",'Матрица по аккред._Инфо'!F3) -> Чтобы продавец зем.участка получил деньги за земельный участок, нужно предоставить документы о переходе права на зем. участок и ипотеки в пользу Банка
B32: 2 аккредитив (деньги пойдет на строительство фундамента) | C32: =IF((IF($C$8="Стандарт",($C$12*'Матрица по аккред._Инфо'!C4),IF($C$8="Ключевой",($C$12*'Матрица по аккред._Инфо'!D4),IF($C$8="Эксклюзив",($C$12*'Матрица по аккред._Инфо'!E4),0)))-C16-C17)<0,0,(IF($C$8="Стандарт",($C$12*'Матрица по аккред._Инфо'!C4),IF($C$8="Ключевой",($C$12*'Матрица по аккред._Инфо'!D4),IF($C$8="Эксклюзив",($C$12*'Матрица по аккред._Инфо'!E4),0)))-C16-C17)) -> 2,800,000.00 | D32: =IF(C32="","",'Матрица по аккред._Инфо'!F4) -> Чтобы подрядчик получил деньги за построенный фундамент и частично на дальнейшее строительство клиент должен предоставить документы, подтверждающие готовность фундамента - акт выполненных работ + акт осмотра Моб оценщика (с выездом Моб оценщика)
B33: 3 аккредитив (деньги пойдут оставшиейся строительные этапы) | C33: =IF(((IF($C$8="Стандарт",($C$12*'Матрица по аккред._Инфо'!C4),IF($C$8="Ключевой",($C$12*'Матрица по аккред._Инфо'!D4),IF($C$8="Эксклюзив",($C$12*'Матрица по аккред._Инфо'!E4),0)))-C16-C17)<0),IF($C$8="Стандарт",($C$12*'Матрица по аккред._Инфо'!C5),IF($C$8="Ключевой",($C$12*'Матрица по аккред._Инфо'!D5),IF($C$8="Эксклюзив",($C$12*'Матрица по аккред._Инфо'!E5),0)))+(IF($C$8="Стандарт",($C$12*'Матрица по аккред._Инфо'!C4),IF($C$8="Ключевой",($C$12*'Матрица по аккред._Инфо'!D4),IF($C$8="Эксклюзив",($C$12*'Матрица по аккред._Инфо'!E4),0)))-C16-C17),IF($C$8="Стандарт",($C$12*'Матрица по аккред._Инфо'!C5),IF($C$8="Ключевой",($C$12*'Матрица по аккред._Инфо'!D5),IF($C$8="Эксклюзив",($C$12*'Матрица по аккред._Инфо'!E5),0)))) -> 1,800,000.00 | D33: =IF(C33="","",'Матрица по аккред._Инфо'!F5) -> После того, как стеновой комплект будет построен, подрядчик может получить деньги для продолжения строительства жилого дома. Для этого потребуется предоставить в Банк акт выполненных работ по завершению строительства стенового компекта + акт осмотра Моб оценщика (с выездом Моб оценщика)
B34: 4 пост-оплата (в этот момент дом уже достроен, подрядчик получит деньги после подписания акта до завершении строительства) | C34: =IF($C$8="Стандарт",($C$12*'Матрица по аккред._Инфо'!C7),IF($C$8="Ключевой",($C$12*'Матрица по аккред._Инфо'!D6),IF($C$8="Эксклюзив",($C$12*'Матрица по аккред._Инфо'!E7),0))) -> 4,200,000.00 | D34: =IF(C34="","",'Матрица по аккред._Инфо'!F7) -> После того, как дом будет построен, Подрядчик получает оставшуюся сумму средств. Для этого необходимо предоставить в Банк акт выполненных работ по строительству жилого дома + акт осмотра Моб оценщика (с выездом Моб оценщика)
B35: Проверка_общая стоимость строительства | C35: =SUM(C32:C34) -> 8,800,000.00
C36: =IF(C35=C12,"Проверка пройдена","Стоимость строительства не совпадает с суммой аккредитивов") -> Стоимость строительства не совпадает с суммой аккредитивов

Sheet Участники (hidden)
L1: Наполнение списка | O1: Наполнение списка
B2: Программа | C2: Госпрограмма 2020 | L2: Семейная ипотека | O2: Строительство дома на своем участке
B3: Цель кредита | C3: Покупка земли и строительство дома | L3: Госпрограмма 2020 | O3: Покупка земли и строительство дома
B5: Требования к составу участников | C5: =IF(AND(C2="Семейная ипотека",C3="Строительство дома на своем участке"),_xlfn.CONCAT("- Все собственники земли должны соответствовать условиям Семейной ипотеки (иметь детей). ", "Если кто-то из собственников земли не имеет детей, то Банк не сможет согласовать кредит по Семейной ипотеке. ","Можно предложить воспользоваться Госпрограммой 2020. ; - По завершению строительства дом должен быть оформлен в собственность тех же лиц, кому принадлежит земля. При этом дом должен быть оформлен в тех же долях, что и земля. ", "Изменение размера долей или режима собственности не допускается"),IF(AND(C2="Семейная ипотека",C3="Покупка земли и строительство дома"),_xlfn.CONCAT("- Земля должна приобретаться только в собственность лиц, соответствующих требованиям Семейной ипотеки (т.е. имеющих детей). ", "Земля не может оформляться в собственность иных лиц! При этом иные лица могут быть привлечены в качестве созаемщиков, с учетом требования по наличию дохода (в качестве созаемщика без дохода может выступать только супруг (-а). ","Если клиенты хотят включить в состав собственников земли родственников (не имеющих детей), можно предложить оформить кредит по Госпрограмме 2020. - По завершению строительства дом ", "должен быть оформлен в собственность тех же лиц, в чью собственность будет приобретаться земля. ", "При этом дом должен быть оформлен в тех же долях, что и земля. ", "Изменение размера долей или режима собственности не допускается."),IF(AND(C2="Госпрограмма 2020",C3="Строительство дома на своем участке"),_xlfn.CONCAT("- Все собственники земли должны быть совершеннолетними гражданами РФ. ", "Все собственники земли должны иметь доход, за исключением супруга (-и) заемщика. ","Если кто-то из собственников земли не имеет дохода (за исключением супруги заемщика), такой земельный участок не может быть согласован. - По завершению строительства ", "дом должен быть оформлен в собственность тех же лиц, кому принадлежит земля. При этом дом должен быть оформлен в тех же долях, что и земля. ", "Изменение размера долей или режима собственности не допускается"),IF(AND(C2="Госпрограмма 2020",C3="Покупка земли и строительство дома"),_xlfn.CONCAT("- Земля должна приобретаться только в собственность совершеннолетних граждан РФ, имещих доход (исключение - супруг (а) заемщика, он может быть без дохода).; - По завершению строительства дом ", "должен быть оформлен в собственность тех же лиц, в чью собственность будет приобретаться земля. ", "При этом дом должен быть оформлен в тех же долях, что и земля. ", "Изменение размера долей или режима собственности не допускается."),"")))) -> - Земля должна приобретаться только в собственность совершеннолетних граждан РФ, имещих доход (исключение - супруг (а) заемщика, он может быть без дохода).; - По завершению строительства дом должен быть оформлен в собственность тех же лиц, в чью собственность будет приобретаться земля. При этом дом должен быть оформлен в тех же долях, что и земля. Изменение размера долей или режима собственности не допускается.
B7: Проверь себя (на примере СИ) | C7: Сотрудник ОП может проверить состав участников сделки (еще доработаем блок)
B9: Блок заполняется сотрудников ОП!!! | F9: Блок заполняется автоматически!!!
B10: Кол-во собственников земли | C10: 3 | F10: Кол-во будущих собственников жилого дом | G10: =C10 -> 3 | L10: Наполнение списка
L11: Да
B12: Состав собственников ЗУ | C12: ФИО | D12: Относится к ЦА Семейки | F12: Состав будущих собственников жилого дома | G12: Готов ли банк рассматривать в качестве залогодателя | L12: Нет
B13: Собственник ЗУ №1 | C13: Иванов И.И. | D13: Да | F13: =C13 -> Иванов И.И. | G13: =IF(D13="Да","Да","Нет") -> Да
B14: Собственник ЗУ №2 | C14: Иванова М.П. | D14: Да | F14: =C14 -> Иванова М.П. | G14: =IF(D14="Да","Да","Нет") -> Да
B15: Собственник ЗУ №3 | C15: Петров С.С. | D15: Нет | F15: =C15 -> Петров С.С. | G15: =IF(D15="Да","Да","Нет") -> Нет
B16: Собственник ЗУ №4
B19: Заключение о возможности проведения сделки с указанным составом собственников зем. участка
B20: =IF(ISNA(MATCH(L12,G13:G16,0)),"Поздравляем, состав участников согласован","К сожалению, состав участников не может быть согласован по Семейной ипотеке. Предложите клиентам воспользоваться Госпрограммой 2020") -> К сожалению, состав участников не может быть согласован по Семейной ипотеке. Предложите клиентам воспользоваться Госпрограммой 2020

Sheet Материалы стен (hidden)
B2: Допустимые материалы стен (справочник Пеги) | C2: Комментарии (что можно отнести к категории материалов) | E2: НЕдопустимые материалы стен | F2: Комментарии (что можно отнести к категории материалов)
B3: Кирпич | C3: - Все виды кирпича - Поротерм (Pototherm) - Керамический блок | E3: Камыш
B4: Каменный | C4: НЕ ВЫБИРАТЬ В ПЕГЕ (будет отказ) | E4: Шлакоблоки
B5: Каркасный | E5: Ракушечник/ракушняк
B6: Металлокаркасные панели/легкие конструкции | C6: - ЛСТК - сэндвич-панели | E6: Фанера
B7: Сип-панели | E7: Металлические листы
B8: Монолит | C8: - Железобетон - Арболит - Полистиролбетон (ПСБ) - Пенополистиролбетон - Стиропорбетон - Стиропорпенобетон - Пенопластобетон - Опилкобетон | E8: Саман
B9: Панель | C9: - Однослойные панели - Трехслойные панели - Префаб каркасник (панели) - CLT | E9: Солома
B10: Газоблок | C10: - Газоблок - Газобетон | E10: Шпалы
B11: Пеноблок | C11: - Пеноблок - Пенобетон | E11: Грунт
B12: Твинблок | C12: - Твинблок
B13: Брус | C13: - Все виды бруса (кроме клееного бруса)
B14: Клееный брус | C14: - Клееный брус
B15: Кирпично-мололитный

Sheet Матрица ставок_Инфо
B2: Ипотека на строительство жилого дома
C3: Семейная ипотека (К/З <= 79,9%) | D3: Семейная ипотека для ДФО (К/З <= 79,9%) | E3: Льготная ипотека с гос. поддержкой (К/З <= 69,9%) | F3: IT- ипотека с гос. поддержкой (К/З <= 79,9%) | G3: Стандартная программа (только для Комбо-ипотеки) (К/З <= 79,9%) | H3: Собственная программа Банка (К/З <= 79,9%)
B4: БАЗОВАЯ СТАВКА | C4: 6.00% | D4: 5.00% | E4: 8.00% | F4: 6.00% | G4: 23.00% | H4: 27.50%
B6: Дисконты К БАЗОВОЙ СТАВКЕ (дисконты на сегмент и личное страхование могут суммироваться)
B7: А-Клуб/Сотрудники | C7: 0.00% | D7: =C7 -> 0.00% | E7: 0.00% | F7: 0.00% | G7: 0.00% | H7: 0.00%
B8: Заключение договора личного страхования | C8: 0.00% | D8: 0.00% | E8: 0.00% | F8: 0.00% | G8: 0.00% | H8: 0.00%
B9: Быстрый выход на сделку | C9: 0.00% | D9: =C9 -> 0.00% | E9: 0.00% | F9: 0.00% | G9: 0.00% | H9: 0.00%
B11: Надбавки К БАЗОВОЙ СТАВКЕ
B12: Отказ от договора личного страхования | C12: - | D12: =C12 -> - | E12: 1.00% | F12: - | G12: 1.00% | H12: 1.00%
B14: Расчет ставки с учетом дисконтов и надбавок
B15: Ипотека на строительство жилого дома
C16: Семейная ипотека (К/З <= 79,9%) | D16: Семейная ипотека для ДФО (К/З <= 79,9%) | E16: Льготная ипотека с гос. поддержкой (К/З <= 69,9%) | F16: IT- ипотека с гос. поддержкой (К/З <= 79,9%) | G16: Комбо-ипотека (в части суммы, превышающей стандартные суммы по госпрограммам - 12/6 млн руб.) (К/З <= 79,9%) | H16: Собственная программа Банка (пока в формате Нестандарта) (К/З <= 79,9%)
B17: Клиент "улица" или зп-клиент (НЕ А-Клуб/Сотрудники) БЕЗ личного страхования | C17: =C4 -> 6.00% | D17: =D4 -> 5.00% | E17: =E4+E12 -> 9.00% | F17: =F4 -> 6.00% | G17: =G4+G12 -> 24.00% | H17: =H4+H12 -> 28.50%
B18: Клиент "улица" или зп-клиент (НЕ А-Клуб/Сотрудники) С договором личного страхования | C18: =C4+C8 -> 6.00% | D18: =D4+D8 -> 5.00% | E18: =E4+E8 -> 8.00% | F18: =F4+F8 -> 6.00% | G18: 23.00% | H18: =H4+H8 -> 27.50%
B19: Клиент А-Клуб/Сотрудники БЕЗ личного страхования | C19: =C4+C7 -> 6.00% | D19: =D4+D7 -> 5.00% | E19: =E4+E7+E12 -> 9.00% | F19: =F4+F7 -> 6.00% | G19: =G4+G7+G12 -> 24.00% | H19: =H4+H7+H12 -> 28.50%
B20: Клиент А-Клуб/Сотрудники С договором личного страхования | C20: =C4+C7+C8 -> 6.00% | D20: =D4+D7+D8 -> 5.00% | E20: =E4+E7+E8 -> 8.00% | F20: =F4+F7+F8 -> 6.00% | G20: 23.00% | H20: =H4+H7+H8 -> 27.50%
B21: Клиент "улица" или зп-клиент (НЕ А-Клуб/Сотрудники) БЕЗ личного страхования, вышедший на сделку в течение 30 дней после одобрения | C21: =C17+$C$9 -> 6.00% | D21: =D17+$D$9 -> 5.00% | E21: =E17+$E$9 -> 9.00% | F21: =F17+$F$9 -> 6.00% | G21: =G17+$G$9 -> 24.00% | H21: =H17+$H$9 -> 28.50%
B22: Клиент "улица" или зп-клиент (НЕ А-Клуб/Сотрудники) С договором личного страхования, вышедший на сделку в течение 1 месяца после одобрения | C22: =C18+$C$9 -> 6.00% | D22: =D18+$D$9 -> 5.00% | E22: =E18+$E$9 -> 8.00% | F22: =F18+$F$9 -> 6.00% | G22: =G18+$G$9 -> 23.00% | H22: =H18+$H$9 -> 27.50%
B23: Клиент А-Клуб/Сотрудники БЕЗ личного страхования, вышедший на сделку в течение 1 месяца после одобрения | C23: 6.00% | D23: 5.00% | E23: 9.00% | F23: 6.00% | G23: 24.00% | H23: 28.50%
B24: Клиент А-Клуб/Сотрудники С договором личного страхования, вышедший на сделку в течение 1 месяца после одобрения | C24: 6.00% | D24: 5.00% | E24: 8.00% | F24: 6.00% | G24: 23.00% | H24: 27.50%

Sheet Матрица по аккред._Инфо (hidden)
A2: Номер аккредитива | B2: Цель | C2: Стандарт | D2: Ключевой | E2: Эксклюзив | F2: Условия доступа к аккредитиву
A3: 1 | B3: покупка земли (% от стоимости зем. участка) | C3: 100% | D3: 100% | E3: 100% | F3: Чтобы продавец зем.участка получил деньги за земельный участок, нужно предоставить документы о переходе права на зем. участок и ипотеки в пользу Банка
A4: 2 | B4: фундамент/стеновой комплект | C4: 30% | D4: 30% | E4: 60% | F4: Чтобы подрядчик получил деньги за построенный фундамент и частично на дальнейшее строительство клиент должен предоставить документы, подтверждающие готовность фундамента - акт выполненных работ + акт осмотра Моб оценщика (с выездом Моб оценщика)
A5: 3 | B5: теплый контур | C5: 15% | D5: 15% | E5: =100%-E4 -> 40% | F5: После того, как стеновой комплект будет построен, подрядчик может получить деньги для продолжения строительства жилого дома. Для этого потребуется предоставить в Банк акт выполненных работ по завершению строительства стенового компекта + акт осмотра Моб оценщика (с выездом Моб оценщика)
A6: 4 | B6: коммуникации и отделка | C6: 35% | D6: 35% | E6: 0% | F6: После того, как теплый контур будет построен, Подрядчик получает оставшуюся сумму средств. Для этого необходимо предоставить в Банк акт выполненных работ по завершению строительства теплого контура + акт осмотра Моб оценщика (с выездом Моб оценщика)
A7: 5 | B7: пост-оплата | C7: =100%-C4-C5-C6 -> 20% | D7: 20% | E7: =100%-E4-E5 -> 0% | F7: После того, как дом будет построен, Подрядчик получает оставшуюся сумму средств. Для этого необходимо предоставить в Банк акт выполненных работ по строительству жилого дома + акт осмотра Моб оценщика (с выездом Моб оценщика)
A10: Номер аккредитива | B10: Цель | C10: GoodWood | F10: Условия доступа к аккредитиву
A11: 1 | B11: покупка земли (% от стоимости зем. участка) | C11: 100% | F11: Чтобы продавец зем.участка получил деньги за земельный участок, нужно предоставить документы о переходе права на зем. участок и ипотеки в пользу Банка
A12: 2 | B12: начало строительства (фундамент) | C12: 30% | F12: Чтобы подрядчик получил деньги на начало строительства дома клиент должен предоставить документы, подтверждающие регистрацию ипотеки на зем.участок в пользу Банка
A13: 3 | B13: коробка | C13: 50% | F13: После того, как фундамент будет построен, подрядчик может получить деньги для продолжения строительства жилого дома. Для этого потребуется предоставить в Банк акт выполненных работ по строительству фундамента
A14: 4 | B14: стены | C14: =100%-C12-C13 -> 20% | F14: После того, как стеновой комплект будет построен, Подрядчик получает оставшуюся сумму средств. Для этого необходимо предоставить в Банк акт выполненных работ по строительству стенового комплекта
A15: 5 | B15: пост-оплата | C15: 0% | F15: После того, как дом будет построен, Подрядчик получает оставшуюся сумму средств. Для этого необходимо предоставить в Банк акт выполненных работ по строительству жилого дома

Sheet Участники_проверка на заведении (hidden)
B2: Строительство на своем земельном участке
B4: Кол-во собственников земли | C4: 3 | D4: Заполняется сотрудников ОП!!! | F4: Кол-во будущих собственников жилого дом | G4: =C4 -> 3 | L4: Наполнение списка
L5: Да
B6: Состав собственников ЗУ | C6: ФИО | D6: Относится к ЦА Семейки | F6: Состав будущих собственников жилого дома | G6: Готов ли банк рассматривать в качестве залогодателя | L6: Нет
B7: Собственник ЗУ №1 | C7: Иванов И.И. | D7: Да | F7: =C7 -> Иванов И.И. | G7: =IF(D7="Да","Да","Нет") -> Да
B8: Собственник ЗУ №2 | C8: Иванова М.П. | D8: Нет | F8: =C8 -> Иванова М.П. | G8: =IF(D8="Да","Да","Нет") -> Нет
B9: Собственник ЗУ №3 | C9: Петров С.С. | D9: Да | F9: =C9 -> Петров С.С. | G9: =IF(D9="Да","Да","Нет") -> Да
B10: Собственник ЗУ №4
B13: Заключение о возможности проведения сделки с указанным составом собственников зем. участка
B14: =IF(ISNA(MATCH(L6,G7:G10,0)),"Поздравляем, состав участников согласован","К сожалению, состав участников не может быть согласован. Банк не сможет одобрить строительство на данном земельном участке") -> К сожалению, состав участников не может быть согласован. Банк не сможет одобрить строительство на данном земельном участке
B16: Финальные параметры:
B17: ФИО | C17: Роль в сделке | D17: Доля в праве собственности
